{"text_format":"1","workbook":"xlsx","n_sheets":13,"sheets":["أسماء الموظفين","يناير","فبراير","مارس","أبريل","مايو","يونيو","يوليو","أغسطس","سبتمبر","أكتوبر","نوفمبر","ديسمبر"],"not_rendered":{"charts":0,"images":0,"macros":1,"external_links":0,"defined_names":50,"comments":0,"pivot_tables":0},"unopened":[],"bounds":{"document_bytes":16777216,"sheet_cells":100000,"rows_first":2000,"rows_last":500,"rows_between":2000,"halvings":0,"cell_chars":16384,"cell_head_chars":4096},"cells_cut":0,"cells_raw":0,"read":"whole","date_system":"1900"}

{"sheet":"أسماء الموظفين","index":0,"n_rows":8,"n_cols":2,"rows_kept":8,"cut":false,"hidden":false,"merged":[]}
[null,"أسماء الموظفين"]
[]
[null,"أسماء الموظفين"]
[null,"الموظف 1"]
[null,"الموظف 2"]
[null,"الموظف 3"]
[null,"الموظف 4"]
[null,"الموظف 5"]

{"sheet":"يناير","index":1,"n_rows":12,"n_cols":34,"rows_kept":12,"cut":false,"hidden":false,"merged":[[3,2,3,32],[1,3,1,4],[1,6,1,8],[1,10,1,11],[1,13,1,14],[1,16,1,17]]}
[null,"جدول غياب الموظفين"]
[null,"مفتاح نوع الغياب","ع","العطلة",null,"ش","أسباب شخصية",null,null,"م","مرضي",null,null,"مخصص 1",null,null,"مخصص 2"]
[null,null,null,null,null,null,null,null,null,null,null,null,null,null,null,null,null,null,null,null,null,null,null,null,null,null,null,null,null,null,null,null,null,"أدخل السنة:"]
[null,"يناير","تواريخ الغياب",null,null,null,null,null,null,null,null,null,null,null,null,null,null,null,null,null,null,null,null,null,null,null,null,null,null,null,null,null,null,2016]
[null,null,{"$f":"TEXT(WEEKDAY(DATE(CalendarYear,1,1),1),\"aaa\")","v":"الجمعة"},{"$f":"TEXT(WEEKDAY(DATE(CalendarYear,1,2),1),\"aaa\")","v":"السبت"},{"$f":"TEXT(WEEKDAY(DATE(CalendarYear,1,3),1),\"aaa\")","v":"الأحد"},{"$f":"TEXT(WEEKDAY(DATE(CalendarYear,1,4),1),\"aaa\")","v":"الإثنين"},{"$f":"TEXT(WEEKDAY(DATE(CalendarYear,1,5),1),\"aaa\")","v":"الثلاثاء"},{"$f":"TEXT(WEEKDAY(DATE(CalendarYear,1,6),1),\"aaa\")","v":"الأربعاء"},{"$f":"TEXT(WEEKDAY(DATE(CalendarYear,1,7),1),\"aaa\")","v":"الخميس"},{"$f":"TEXT(WEEKDAY(DATE(CalendarYear,1,8),1),\"aaa\")","v":"الجمعة"},{"$f":"TEXT(WEEKDAY(DATE(CalendarYear,1,9),1),\"aaa\")","v":"السبت"},{"$f":"TEXT(WEEKDAY(DATE(CalendarYear,1,10),1),\"aaa\")","v":"الأحد"},{"$f":"TEXT(WEEKDAY(DATE(CalendarYear,1,11),1),\"aaa\")","v":"الإثنين"},{"$f":"TEXT(WEEKDAY(DATE(CalendarYear,1,12),1),\"aaa\")","v":"الثلاثاء"},{"$f":"TEXT(WEEKDAY(DATE(CalendarYear,1,13),1),\"aaa\")","v":"الأربعاء"},{"$f":"TEXT(WEEKDAY(DATE(CalendarYear,1,14),1),\"aaa\")","v":"الخميس"},{"$f":"TEXT(WEEKDAY(DATE(CalendarYear,1,15),1),\"aaa\")","v":"الجمعة"},{"$f":"TEXT(WEEKDAY(DATE(CalendarYear,1,16),1),\"aaa\")","v":"السبت"},{"$f":"TEXT(WEEKDAY(DATE(CalendarYear,1,17),1),\"aaa\")","v":"الأحد"},{"$f":"TEXT(WEEKDAY(DATE(CalendarYear,1,18),1),\"aaa\")","v":"الإثنين"},{"$f":"TEXT(WEEKDAY(DATE(CalendarYear,1,19),1),\"aaa\")","v":"الثلاثاء"},{"$f":"TEXT(WEEKDAY(DATE(CalendarYear,1,20),1),\"aaa\")","v":"الأربعاء"},{"$f":"TEXT(WEEKDAY(DATE(CalendarYear,1,21),1),\"aaa\")","v":"الخميس"},{"$f":"TEXT(WEEKDAY(DATE(CalendarYear,1,22),1),\"aaa\")","v":"الجمعة"},{"$f":"TEXT(WEEKDAY(DATE(CalendarYear,1,23),1),\"aaa\")","v":"السبت"},{"$f":"TEXT(WEEKDAY(DATE(CalendarYear,1,24),1),\"aaa\")","v":"الأحد"},{"$f":"TEXT(WEEKDAY(DATE(CalendarYear,1,25),1),\"aaa\")","v":"الإثنين"},{"$f":"TEXT(WEEKDAY(DATE(CalendarYear,1,26),1),\"aaa\")","v":"الثلاثاء"},{"$f":"TEXT(WEEKDAY(DATE(CalendarYear,1,27),1),\"aaa\")","v":"الأربعاء"},{"$f":"TEXT(WEEKDAY(DATE(CalendarYear,1,28),1),\"aaa\")","v":"الخميس"},{"$f":"TEXT(WEEKDAY(DATE(CalendarYear,1,29),1),\"aaa\")","v":"الجمعة"},{"$f":"TEXT(WEEKDAY(DATE(CalendarYear,1,30),1),\"aaa\")","v":"السبت"},{"$f":"TEXT(WEEKDAY(DATE(CalendarYear,1,31),1),\"aaa\")","v":"الأحد"}]
[null,"اسم الموظف","1","2","3","4","5","6","7","8","9","10","11","12","13","14","15","16","17","18","19","20","21","22","23","24","25","26","27","28","29","30","31","إجمالي الأيام"]
[null,"الموظف 1",null,null,"ع","ع","ع","ع",null,null,null,null,null,null,"ع",null,null,null,null,null,null,null,null,null,null,null,null,null,null,null,null,null,null,{"$f":"COUNTA(يناير!$C7:$AG7)","v":5}]
[null,"الموظف 2",null,null,null,null,"م","م",null,null,null,null,"ش",null,null,null,null,null,null,null,null,"م",null,null,null,null,"ع","ع","ع",null,null,null,null,{"$f":"COUNTA(يناير!$C8:$AG8)","v":7}]
[null,"الموظف 3",null,null,"ش",null,null,null,null,null,null,null,null,null,null,"م",null,null,null,null,null,null,null,null,null,null,null,null,null,null,"م",null,null,{"$f":"COUNTA(يناير!$C9:$AG9)","v":3}]
[null,"الموظف 4",null,null,null,null,null,null,"ش",null,null,null,null,null,null,null,null,null,null,null,"ع","ع","ع",null,null,null,null,null,null,null,null,null,null,{"$f":"COUNTA(يناير!$C10:$AG10)","v":4}]
[null,"الموظف 5",null,null,null,"م","ع","ع",null,null,null,null,null,null,null,null,null,null,"م",null,null,null,null,null,null,"م",null,null,null,null,null,null,"ع",{"$f":"COUNTA(يناير!$C11:$AG11)","v":6}]
[null,{"$f":"MonthName&\" الإجمالي\"","v":"يناير الإجمالي"},{"$f":"SUBTOTAL(103,يناير!$C$7:$C$11)","v":0},{"$f":"SUBTOTAL(103,يناير!$D$7:$D$11)","v":0},{"$f":"SUBTOTAL(103,يناير!$E$7:$E$11)","v":2},{"$f":"SUBTOTAL(103,يناير!$F$7:$F$11)","v":2},{"$f":"SUBTOTAL(103,يناير!$G$7:$G$11)","v":3},{"$f":"SUBTOTAL(103,يناير!$H$7:$H$11)","v":3},{"$f":"SUBTOTAL(103,يناير!$I$7:$I$11)","v":1},{"$f":"SUBTOTAL(103,يناير!$J$7:$J$11)","v":0},{"$f":"SUBTOTAL(103,يناير!$K$7:$K$11)","v":0},{"$f":"SUBTOTAL(103,يناير!$L$7:$L$11)","v":0},{"$f":"SUBTOTAL(103,يناير!$M$7:$M$11)","v":1},{"$f":"SUBTOTAL(103,يناير!$N$7:$N$11)","v":0},{"$f":"SUBTOTAL(103,يناير!$O$7:$O$11)","v":1},{"$f":"SUBTOTAL(103,يناير!$P$7:$P$11)","v":1},{"$f":"SUBTOTAL(103,يناير!$Q$7:$Q$11)","v":0},{"$f":"SUBTOTAL(103,يناير!$R$7:$R$11)","v":0},{"$f":"SUBTOTAL(103,يناير!$S$7:$S$11)","v":1},{"$f":"SUBTOTAL(103,يناير!$T$7:$T$11)","v":0},{"$f":"SUBTOTAL(103,يناير!$U$7:$U$11)","v":1},{"$f":"SUBTOTAL(103,يناير!$V$7:$V$11)","v":2},{"$f":"SUBTOTAL(103,يناير!$W$7:$W$11)","v":1},{"$f":"SUBTOTAL(103,يناير!$X$7:$X$11)","v":0},{"$f":"SUBTOTAL(103,يناير!$Y$7:$Y$11)","v":0},{"$f":"SUBTOTAL(103,يناير!$Z$7:$Z$11)","v":1},{"$f":"SUBTOTAL(103,يناير!$AA$7:$AA$11)","v":1},{"$f":"SUBTOTAL(103,يناير!$AB$7:$AB$11)","v":1},{"$f":"SUBTOTAL(103,يناير!$AC$7:$AC$11)","v":1},{"$f":"SUBTOTAL(103,يناير!$AD$7:$AD$11)","v":0},{"$f":"SUBTOTAL(103,يناير!$AE$7:$AE$11)","v":1},{"$f":"SUBTOTAL(103,يناير!$AF$7:$AF$11)","v":0},{"$f":"SUBTOTAL(103,يناير!$AG$7:$AG$11)","v":1},{"$f":"SUBTOTAL(109,[إجمالي الأيام])","v":25}]

{"sheet":"فبراير","index":2,"n_rows":12,"n_cols":34,"rows_kept":12,"cut":false,"hidden":false,"merged":[[3,2,3,32],[1,3,1,4],[1,6,1,8],[1,10,1,11],[1,13,1,14],[1,16,1,17]]}
[null,{"$f":"Employee_Absence_Title","v":"جدول غياب الموظفين"}]
[null,"مفتاح نوع الغياب","ع","العطلة",null,"ش","أسباب شخصية",null,null,"م","مرضي",null,null,"مخصص 1",null,null,"مخصص 2"]
[]
[null,"فبراير","تواريخ الغياب",null,null,null,null,null,null,null,null,null,null,null,null,null,null,null,null,null,null,null,null,null,null,null,null,null,null,null,null,null,null,{"$f":"CalendarYear","v":2016}]
[null,null,{"$f":"TEXT(WEEKDAY(DATE(CalendarYear,2,1),1),\"aaa\")","v":"الإثنين"},{"$f":"TEXT(WEEKDAY(DATE(CalendarYear,2,2),1),\"aaa\")","v":"الثلاثاء"},{"$f":"TEXT(WEEKDAY(DATE(CalendarYear,2,3),1),\"aaa\")","v":"الأربعاء"},{"$f":"TEXT(WEEKDAY(DATE(CalendarYear,2,4),1),\"aaa\")","v":"الخميس"},{"$f":"TEXT(WEEKDAY(DATE(CalendarYear,2,5),1),\"aaa\")","v":"الجمعة"},{"$f":"TEXT(WEEKDAY(DATE(CalendarYear,2,6),1),\"aaa\")","v":"السبت"},{"$f":"TEXT(WEEKDAY(DATE(CalendarYear,2,7),1),\"aaa\")","v":"الأحد"},{"$f":"TEXT(WEEKDAY(DATE(CalendarYear,2,8),1),\"aaa\")","v":"الإثنين"},{"$f":"TEXT(WEEKDAY(DATE(CalendarYear,2,9),1),\"aaa\")","v":"الثلاثاء"},{"$f":"TEXT(WEEKDAY(DATE(CalendarYear,2,10),1),\"aaa\")","v":"الأربعاء"},{"$f":"TEXT(WEEKDAY(DATE(CalendarYear,2,11),1),\"aaa\")","v":"الخميس"},{"$f":"TEXT(WEEKDAY(DATE(CalendarYear,2,12),1),\"aaa\")","v":"الجمعة"},{"$f":"TEXT(WEEKDAY(DATE(CalendarYear,2,13),1),\"aaa\")","v":"السبت"},{"$f":"TEXT(WEEKDAY(DATE(CalendarYear,2,14),1),\"aaa\")","v":"الأحد"},{"$f":"TEXT(WEEKDAY(DATE(CalendarYear,2,15),1),\"aaa\")","v":"الإثنين"},{"$f":"TEXT(WEEKDAY(DATE(CalendarYear,2,16),1),\"aaa\")","v":"الثلاثاء"},{"$f":"TEXT(WEEKDAY(DATE(CalendarYear,2,17),1),\"aaa\")","v":"الأربعاء"},{"$f":"TEXT(WEEKDAY(DATE(CalendarYear,2,18),1),\"aaa\")","v":"الخميس"},{"$f":"TEXT(WEEKDAY(DATE(CalendarYear,2,19),1),\"aaa\")","v":"الجمعة"},{"$f":"TEXT(WEEKDAY(DATE(CalendarYear,2,20),1),\"aaa\")","v":"السبت"},{"$f":"TEXT(WEEKDAY(DATE(CalendarYear,2,21),1),\"aaa\")","v":"الأحد"},{"$f":"TEXT(WEEKDAY(DATE(CalendarYear,2,22),1),\"aaa\")","v":"الإثنين"},{"$f":"TEXT(WEEKDAY(DATE(CalendarYear,2,23),1),\"aaa\")","v":"الثلاثاء"},{"$f":"TEXT(WEEKDAY(DATE(CalendarYear,2,24),1),\"aaa\")","v":"الأربعاء"},{"$f":"TEXT(WEEKDAY(DATE(CalendarYear,2,25),1),\"aaa\")","v":"الخميس"},{"$f":"TEXT(WEEKDAY(DATE(CalendarYear,2,26),1),\"aaa\")","v":"الجمعة"},{"$f":"TEXT(WEEKDAY(DATE(CalendarYear,2,27),1),\"aaa\")","v":"السبت"},{"$f":"TEXT(WEEKDAY(DATE(CalendarYear,2,28),1),\"aaa\")","v":"الأحد"},{"$f":"TEXT(WEEKDAY(DATE(CalendarYear,2,29),1),\"aaa\")","v":"الإثنين"}]
[null,"اسم الموظف","1","2","3","4","5","6","7","8","9","10","11","12","13","14","15","16","17","18","19","20","21","22","23","24","25","26","27","28","29"," ","  ","إجمالي الأيام"]
[null,"الموظف 1",null,null,"ع","ع","ع","ع",null,null,null,null,null,null,"ع",null,null,null,null,null,null,null,null,null,null,null,null,null,null,null,null,null,null,{"$f":"COUNTA(فبراير[[#This Row],[1]:[29]])","v":5}]
[null,"الموظف 2",null,null,null,null,"م","م",null,null,null,null,"ش",null,null,null,null,null,null,null,null,"م",null,null,null,null,"ع","ع","ع",null,null,null,null,{"$f":"COUNTA(فبراير[[#This Row],[1]:[29]])","v":7}]
[null,"الموظف 3",null,null,null,null,null,null,null,null,null,null,null,null,null,null,null,null,null,null,null,null,null,null,null,null,null,null,null,null,null,null,null,{"$f":"COUNTA(فبراير[[#This Row],[1]:[29]])","v":0}]
[null,"الموظف 4",null,null,"م",null,null,null,null,null,null,null,null,null,null,"م",null,null,null,"ش",null,null,null,null,null,null,null,null,null,"م",null,null,null,{"$f":"COUNTA(فبراير[[#This Row],[1]:[29]])","v":4}]
[null,"الموظف 5",null,null,null,null,null,null,null,"ع","ع","ع","ع",null,null,null,null,null,null,null,null,null,null,null,null,"م",null,null,null,null,null,null,null,{"$f":"COUNTA(فبراير[[#This Row],[1]:[29]])","v":5}]
[null,{"$f":"MonthName&\" الإجمالي\"","v":"فبراير الإجمالي"},{"$f":"SUBTOTAL(103,[1])","v":0},{"$f":"SUBTOTAL(103,[2])","v":0},{"$f":"SUBTOTAL(103,[3])","v":2},{"$f":"SUBTOTAL(103,[4])","v":1},{"$f":"SUBTOTAL(103,[5])","v":2},{"$f":"SUBTOTAL(103,[6])","v":2},{"$f":"SUBTOTAL(103,[7])","v":0},{"$f":"SUBTOTAL(103,[8])","v":1},{"$f":"SUBTOTAL(103,[9])","v":1},{"$f":"SUBTOTAL(103,[10])","v":1},{"$f":"SUBTOTAL(103,[11])","v":2},{"$f":"SUBTOTAL(103,[12])","v":0},{"$f":"SUBTOTAL(103,[13])","v":1},{"$f":"SUBTOTAL(103,[14])","v":1},{"$f":"SUBTOTAL(103,[15])","v":0},{"$f":"SUBTOTAL(103,[16])","v":0},{"$f":"SUBTOTAL(103,[17])","v":0},{"$f":"SUBTOTAL(103,[18])","v":1},{"$f":"SUBTOTAL(103,[19])","v":0},{"$f":"SUBTOTAL(103,[20])","v":1},{"$f":"SUBTOTAL(103,[21])","v":0},{"$f":"SUBTOTAL(103,[22])","v":0},{"$f":"SUBTOTAL(103,[23])","v":0},{"$f":"SUBTOTAL(103,[24])","v":1},{"$f":"SUBTOTAL(103,[25])","v":1},{"$f":"SUBTOTAL(103,[26])","v":1},{"$f":"SUBTOTAL(103,[27])","v":1},{"$f":"SUBTOTAL(103,[28])","v":1},{"$f":"SUBTOTAL(103,[29])","v":0},null,null,{"$f":"SUBTOTAL(109,[إجمالي الأيام])","v":21}]

{"sheet":"مارس","index":3,"n_rows":12,"n_cols":34,"rows_kept":12,"cut":false,"hidden":false,"merged":[[3,2,3,32],[1,3,1,4],[1,6,1,8],[1,10,1,11],[1,13,1,14],[1,16,1,17]]}
[null,{"$f":"Employee_Absence_Title","v":"جدول غياب الموظفين"}]
[null,"مفتاح نوع الغياب","ع","العطلة",null,"ش","أسباب شخصية",null,null,"م","مرضي",null,null,"مخصص 1",null,null,"مخصص 2"]
[]
[null,"مارس","تواريخ الغياب",null,null,null,null,null,null,null,null,null,null,null,null,null,null,null,null,null,null,null,null,null,null,null,null,null,null,null,null,null,null,{"$f":"CalendarYear","v":2016}]
[null,null,{"$f":"TEXT(WEEKDAY(DATE(CalendarYear,3,1),1),\"aaa\")","v":"الثلاثاء"},{"$f":"TEXT(WEEKDAY(DATE(CalendarYear,3,2),1),\"aaa\")","v":"الأربعاء"},{"$f":"TEXT(WEEKDAY(DATE(CalendarYear,3,3),1),\"aaa\")","v":"الخميس"},{"$f":"TEXT(WEEKDAY(DATE(CalendarYear,3,4),1),\"aaa\")","v":"الجمعة"},{"$f":"TEXT(WEEKDAY(DATE(CalendarYear,3,5),1),\"aaa\")","v":"السبت"},{"$f":"TEXT(WEEKDAY(DATE(CalendarYear,3,6),1),\"aaa\")","v":"الأحد"},{"$f":"TEXT(WEEKDAY(DATE(CalendarYear,3,7),1),\"aaa\")","v":"الإثنين"},{"$f":"TEXT(WEEKDAY(DATE(CalendarYear,3,8),1),\"aaa\")","v":"الثلاثاء"},{"$f":"TEXT(WEEKDAY(DATE(CalendarYear,3,9),1),\"aaa\")","v":"الأربعاء"},{"$f":"TEXT(WEEKDAY(DATE(CalendarYear,3,10),1),\"aaa\")","v":"الخميس"},{"$f":"TEXT(WEEKDAY(DATE(CalendarYear,3,11),1),\"aaa\")","v":"الجمعة"},{"$f":"TEXT(WEEKDAY(DATE(CalendarYear,3,12),1),\"aaa\")","v":"السبت"},{"$f":"TEXT(WEEKDAY(DATE(CalendarYear,3,13),1),\"aaa\")","v":"الأحد"},{"$f":"TEXT(WEEKDAY(DATE(CalendarYear,3,14),1),\"aaa\")","v":"الإثنين"},{"$f":"TEXT(WEEKDAY(DATE(CalendarYear,3,15),1),\"aaa\")","v":"الثلاثاء"},{"$f":"TEXT(WEEKDAY(DATE(CalendarYear,3,16),1),\"aaa\")","v":"الأربعاء"},{"$f":"TEXT(WEEKDAY(DATE(CalendarYear,3,17),1),\"aaa\")","v":"الخميس"},{"$f":"TEXT(WEEKDAY(DATE(CalendarYear,3,18),1),\"aaa\")","v":"الجمعة"},{"$f":"TEXT(WEEKDAY(DATE(CalendarYear,3,19),1),\"aaa\")","v":"السبت"},{"$f":"TEXT(WEEKDAY(DATE(CalendarYear,3,20),1),\"aaa\")","v":"الأحد"},{"$f":"TEXT(WEEKDAY(DATE(CalendarYear,3,21),1),\"aaa\")","v":"الإثنين"},{"$f":"TEXT(WEEKDAY(DATE(CalendarYear,3,22),1),\"aaa\")","v":"الثلاثاء"},{"$f":"TEXT(WEEKDAY(DATE(CalendarYear,3,23),1),\"aaa\")","v":"الأربعاء"},{"$f":"TEXT(WEEKDAY(DATE(CalendarYear,3,24),1),\"aaa\")","v":"الخميس"},{"$f":"TEXT(WEEKDAY(DATE(CalendarYear,3,25),1),\"aaa\")","v":"الجمعة"},{"$f":"TEXT(WEEKDAY(DATE(CalendarYear,3,26),1),\"aaa\")","v":"السبت"},{"$f":"TEXT(WEEKDAY(DATE(CalendarYear,3,27),1),\"aaa\")","v":"الأحد"},{"$f":"TEXT(WEEKDAY(DATE(CalendarYear,3,28),1),\"aaa\")","v":"الإثنين"},{"$f":"TEXT(WEEKDAY(DATE(CalendarYear,3,29),1),\"aaa\")","v":"الثلاثاء"},{"$f":"TEXT(WEEKDAY(DATE(CalendarYear,3,30),1),\"aaa\")","v":"الأربعاء"},{"$f":"TEXT(WEEKDAY(DATE(CalendarYear,3,31),1),\"aaa\")","v":"الخميس"}]
[null,"اسم الموظف","1","2","3","4","5","6","7","8","9","10","11","12","13","14","15","16","17","18","19","20","21","22","23","24","25","26","27","28","29","30","31","إجمالي الأيام"]
[null,"الموظف 1",null,null,null,null,null,null,null,null,null,null,null,null,null,null,null,null,null,null,null,null,null,null,null,null,null,null,null,null,null,null,null,{"$f":"COUNTA(مارس[[#This Row],[1]:[31]])","v":0}]
[null,"الموظف 2",null,null,null,null,null,null,null,null,null,null,null,null,null,null,null,null,null,null,null,null,null,null,null,null,null,null,null,null,null,null,null,{"$f":"COUNTA(مارس[[#This Row],[1]:[31]])","v":0}]
[null,"الموظف 3",null,null,null,null,null,null,null,null,null,null,null,null,null,null,null,null,null,null,null,null,null,null,null,null,null,null,null,null,null,null,null,{"$f":"COUNTA(مارس[[#This Row],[1]:[31]])","v":0}]
[null,"الموظف 4",null,null,null,null,null,null,null,null,null,null,null,null,null,null,null,null,null,null,null,null,null,null,null,null,null,null,null,null,null,null,null,{"$f":"COUNTA(مارس[[#This Row],[1]:[31]])","v":0}]
[null,"الموظف 5",null,null,null,null,null,null,null,null,null,null,null,null,null,null,null,null,null,null,null,null,null,null,null,null,null,null,null,null,null,null,null,{"$f":"COUNTA(مارس[[#This Row],[1]:[31]])","v":0}]
[null,{"$f":"MonthName&\" الإجمالي\"","v":"مارس الإجمالي"},{"$f":"SUBTOTAL(103,[1])","v":0},{"$f":"SUBTOTAL(103,[2])","v":0},{"$f":"SUBTOTAL(103,[3])","v":0},{"$f":"SUBTOTAL(103,[4])","v":0},{"$f":"SUBTOTAL(103,[5])","v":0},{"$f":"SUBTOTAL(103,[6])","v":0},{"$f":"SUBTOTAL(103,[7])","v":0},{"$f":"SUBTOTAL(103,[8])","v":0},{"$f":"SUBTOTAL(103,[9])","v":0},{"$f":"SUBTOTAL(103,[10])","v":0},{"$f":"SUBTOTAL(103,[11])","v":0},{"$f":"SUBTOTAL(103,[12])","v":0},{"$f":"SUBTOTAL(103,[13])","v":0},{"$f":"SUBTOTAL(103,[14])","v":0},{"$f":"SUBTOTAL(103,[15])","v":0},{"$f":"SUBTOTAL(103,[16])","v":0},{"$f":"SUBTOTAL(103,[17])","v":0},{"$f":"SUBTOTAL(103,[18])","v":0},{"$f":"SUBTOTAL(103,[19])","v":0},{"$f":"SUBTOTAL(103,[20])","v":0},{"$f":"SUBTOTAL(103,[21])","v":0},{"$f":"SUBTOTAL(103,[22])","v":0},{"$f":"SUBTOTAL(103,[23])","v":0},{"$f":"SUBTOTAL(103,[24])","v":0},{"$f":"SUBTOTAL(103,[25])","v":0},{"$f":"SUBTOTAL(103,[26])","v":0},{"$f":"SUBTOTAL(103,[27])","v":0},{"$f":"SUBTOTAL(103,[28])","v":0},{"$f":"SUBTOTAL(103,[29])","v":0},{"$f":"SUBTOTAL(109,[30])","v":0},{"$f":"SUBTOTAL(109,[31])","v":0},{"$f":"SUBTOTAL(109,[إجمالي الأيام])","v":0}]

{"sheet":"أبريل","index":4,"n_rows":12,"n_cols":34,"rows_kept":12,"cut":false,"hidden":false,"merged":[[3,2,3,32],[1,3,1,4],[1,6,1,8],[1,10,1,11],[1,13,1,14],[1,16,1,17]]}
[null,{"$f":"Employee_Absence_Title","v":"جدول غياب الموظفين"}]
[null,"مفتاح نوع الغياب","ع","العطلة",null,"ش","أسباب شخصية",null,null,"م","مرضي",null,null,"مخصص 1",null,null,"مخصص 2"]
[]
[null,"أبريل","تواريخ الغياب",null,null,null,null,null,null,null,null,null,null,null,null,null,null,null,null,null,null,null,null,null,null,null,null,null,null,null,null,null,null,{"$f":"CalendarYear","v":2016}]
[null,null,{"$f":"TEXT(WEEKDAY(DATE(CalendarYear,4,1),1),\"aaa\")","v":"الجمعة"},{"$f":"TEXT(WEEKDAY(DATE(CalendarYear,4,2),1),\"aaa\")","v":"السبت"},{"$f":"TEXT(WEEKDAY(DATE(CalendarYear,4,3),1),\"aaa\")","v":"الأحد"},{"$f":"TEXT(WEEKDAY(DATE(CalendarYear,4,4),1),\"aaa\")","v":"الإثنين"},{"$f":"TEXT(WEEKDAY(DATE(CalendarYear,4,5),1),\"aaa\")","v":"الثلاثاء"},{"$f":"TEXT(WEEKDAY(DATE(CalendarYear,4,6),1),\"aaa\")","v":"الأربعاء"},{"$f":"TEXT(WEEKDAY(DATE(CalendarYear,4,7),1),\"aaa\")","v":"الخميس"},{"$f":"TEXT(WEEKDAY(DATE(CalendarYear,4,8),1),\"aaa\")","v":"الجمعة"},{"$f":"TEXT(WEEKDAY(DATE(CalendarYear,4,9),1),\"aaa\")","v":"السبت"},{"$f":"TEXT(WEEKDAY(DATE(CalendarYear,4,10),1),\"aaa\")","v":"الأحد"},{"$f":"TEXT(WEEKDAY(DATE(CalendarYear,4,11),1),\"aaa\")","v":"الإثنين"},{"$f":"TEXT(WEEKDAY(DATE(CalendarYear,4,12),1),\"aaa\")","v":"الثلاثاء"},{"$f":"TEXT(WEEKDAY(DATE(CalendarYear,4,13),1),\"aaa\")","v":"الأربعاء"},{"$f":"TEXT(WEEKDAY(DATE(CalendarYear,4,14),1),\"aaa\")","v":"الخميس"},{"$f":"TEXT(WEEKDAY(DATE(CalendarYear,4,15),1),\"aaa\")","v":"الجمعة"},{"$f":"TEXT(WEEKDAY(DATE(CalendarYear,4,16),1),\"aaa\")","v":"السبت"},{"$f":"TEXT(WEEKDAY(DATE(CalendarYear,4,17),1),\"aaa\")","v":"الأحد"},{"$f":"TEXT(WEEKDAY(DATE(CalendarYear,4,18),1),\"aaa\")","v":"الإثنين"},{"$f":"TEXT(WEEKDAY(DATE(CalendarYear,4,19),1),\"aaa\")","v":"الثلاثاء"},{"$f":"TEXT(WEEKDAY(DATE(CalendarYear,4,20),1),\"aaa\")","v":"الأربعاء"},{"$f":"TEXT(WEEKDAY(DATE(CalendarYear,4,21),1),\"aaa\")","v":"الخميس"},{"$f":"TEXT(WEEKDAY(DATE(CalendarYear,4,22),1),\"aaa\")","v":"الجمعة"},{"$f":"TEXT(WEEKDAY(DATE(CalendarYear,4,23),1),\"aaa\")","v":"السبت"},{"$f":"TEXT(WEEKDAY(DATE(CalendarYear,4,24),1),\"aaa\")","v":"الأحد"},{"$f":"TEXT(WEEKDAY(DATE(CalendarYear,4,25),1),\"aaa\")","v":"الإثنين"},{"$f":"TEXT(WEEKDAY(DATE(CalendarYear,4,26),1),\"aaa\")","v":"الثلاثاء"},{"$f":"TEXT(WEEKDAY(DATE(CalendarYear,4,27),1),\"aaa\")","v":"الأربعاء"},{"$f":"TEXT(WEEKDAY(DATE(CalendarYear,4,28),1),\"aaa\")","v":"الخميس"},{"$f":"TEXT(WEEKDAY(DATE(CalendarYear,4,29),1),\"aaa\")","v":"الجمعة"},{"$f":"TEXT(WEEKDAY(DATE(CalendarYear,4,30),1),\"aaa\")","v":"السبت"}]
[null,"اسم الموظف","1","2","3","4","5","6","7","8","9","10","11","12","13","14","15","16","17","18","19","20","21","22","23","24","25","26","27","28","29","30","31","إجمالي الأيام"]
[null,"الموظف 1",null,null,null,null,null,null,null,null,null,null,null,null,null,null,null,null,null,null,null,null,null,null,null,null,null,null,null,null,null,null,null,{"$f":"COUNTA(أبريل[[#This Row],[1]:[31]])","v":0}]
[null,"الموظف 2",null,null,null,null,null,null,null,null,null,null,null,null,null,null,null,null,null,null,null,null,null,null,null,null,null,null,null,null,null,null,null,{"$f":"COUNTA(أبريل[[#This Row],[1]:[31]])","v":0}]
[null,"الموظف 3",null,null,null,null,null,null,null,null,null,null,null,null,null,null,null,null,null,null,null,null,null,null,null,null,null,null,null,null,null,null,null,{"$f":"COUNTA(أبريل[[#This Row],[1]:[31]])","v":0}]
[null,"الموظف 4",null,null,null,null,null,null,null,null,null,null,null,null,null,null,null,null,null,null,null,null,null,null,null,null,null,null,null,null,null,null,null,{"$f":"COUNTA(أبريل[[#This Row],[1]:[31]])","v":0}]
[null,"الموظف 5",null,null,null,null,null,null,null,null,null,null,null,null,null,null,null,null,null,null,null,null,null,null,null,null,null,null,null,null,null,null,null,{"$f":"COUNTA(أبريل[[#This Row],[1]:[31]])","v":0}]
[null,{"$f":"MonthName&\" الإجمالي\"","v":"أبريل الإجمالي"},{"$f":"SUBTOTAL(103,[1])","v":0},{"$f":"SUBTOTAL(103,[2])","v":0},{"$f":"SUBTOTAL(103,[3])","v":0},{"$f":"SUBTOTAL(103,[4])","v":0},{"$f":"SUBTOTAL(103,[5])","v":0},{"$f":"SUBTOTAL(103,[6])","v":0},{"$f":"SUBTOTAL(103,[7])","v":0},{"$f":"SUBTOTAL(103,[8])","v":0},{"$f":"SUBTOTAL(103,[9])","v":0},{"$f":"SUBTOTAL(103,[10])","v":0},{"$f":"SUBTOTAL(103,[11])","v":0},{"$f":"SUBTOTAL(103,[12])","v":0},{"$f":"SUBTOTAL(103,[13])","v":0},{"$f":"SUBTOTAL(103,[14])","v":0},{"$f":"SUBTOTAL(103,[15])","v":0},{"$f":"SUBTOTAL(103,[16])","v":0},{"$f":"SUBTOTAL(103,[17])","v":0},{"$f":"SUBTOTAL(103,[18])","v":0},{"$f":"SUBTOTAL(103,[19])","v":0},{"$f":"SUBTOTAL(103,[20])","v":0},{"$f":"SUBTOTAL(103,[21])","v":0},{"$f":"SUBTOTAL(103,[22])","v":0},{"$f":"SUBTOTAL(103,[23])","v":0},{"$f":"SUBTOTAL(103,[24])","v":0},{"$f":"SUBTOTAL(103,[25])","v":0},{"$f":"SUBTOTAL(103,[26])","v":0},{"$f":"SUBTOTAL(103,[27])","v":0},{"$f":"SUBTOTAL(103,[28])","v":0},{"$f":"SUBTOTAL(103,[29])","v":0},{"$f":"SUBTOTAL(109,[30])","v":0},{"$f":"SUBTOTAL(109,[31])","v":0},{"$f":"SUBTOTAL(109,[إجمالي الأيام])","v":0}]

{"sheet":"مايو","index":5,"n_rows":12,"n_cols":34,"rows_kept":12,"cut":false,"hidden":false,"merged":[[3,2,3,32],[1,3,1,4],[1,6,1,8],[1,10,1,11],[1,13,1,14],[1,16,1,17]]}
[null,{"$f":"Employee_Absence_Title","v":"جدول غياب الموظفين"}]
[null,"مفتاح نوع الغياب","ع","العطلة",null,"ش","أسباب شخصية",null,null,"م","مرضي",null,null,"مخصص 1",null,null,"مخصص 2"]
[]
[null,"مايو","تواريخ الغياب",null,null,null,null,null,null,null,null,null,null,null,null,null,null,null,null,null,null,null,null,null,null,null,null,null,null,null,null,null,null,{"$f":"CalendarYear","v":2016}]
[null,null,{"$f":"TEXT(WEEKDAY(DATE(CalendarYear,5,1),1),\"aaa\")","v":"الأحد"},{"$f":"TEXT(WEEKDAY(DATE(CalendarYear,5,2),1),\"aaa\")","v":"الإثنين"},{"$f":"TEXT(WEEKDAY(DATE(CalendarYear,5,3),1),\"aaa\")","v":"الثلاثاء"},{"$f":"TEXT(WEEKDAY(DATE(CalendarYear,5,4),1),\"aaa\")","v":"الأربعاء"},{"$f":"TEXT(WEEKDAY(DATE(CalendarYear,5,5),1),\"aaa\")","v":"الخميس"},{"$f":"TEXT(WEEKDAY(DATE(CalendarYear,5,6),1),\"aaa\")","v":"الجمعة"},{"$f":"TEXT(WEEKDAY(DATE(CalendarYear,5,7),1),\"aaa\")","v":"السبت"},{"$f":"TEXT(WEEKDAY(DATE(CalendarYear,5,8),1),\"aaa\")","v":"الأحد"},{"$f":"TEXT(WEEKDAY(DATE(CalendarYear,5,9),1),\"aaa\")","v":"الإثنين"},{"$f":"TEXT(WEEKDAY(DATE(CalendarYear,5,10),1),\"aaa\")","v":"الثلاثاء"},{"$f":"TEXT(WEEKDAY(DATE(CalendarYear,5,11),1),\"aaa\")","v":"الأربعاء"},{"$f":"TEXT(WEEKDAY(DATE(CalendarYear,5,12),1),\"aaa\")","v":"الخميس"},{"$f":"TEXT(WEEKDAY(DATE(CalendarYear,5,13),1),\"aaa\")","v":"الجمعة"},{"$f":"TEXT(WEEKDAY(DATE(CalendarYear,5,14),1),\"aaa\")","v":"السبت"},{"$f":"TEXT(WEEKDAY(DATE(CalendarYear,5,15),1),\"aaa\")","v":"الأحد"},{"$f":"TEXT(WEEKDAY(DATE(CalendarYear,5,16),1),\"aaa\")","v":"الإثنين"},{"$f":"TEXT(WEEKDAY(DATE(CalendarYear,5,17),1),\"aaa\")","v":"الثلاثاء"},{"$f":"TEXT(WEEKDAY(DATE(CalendarYear,5,18),1),\"aaa\")","v":"الأربعاء"},{"$f":"TEXT(WEEKDAY(DATE(CalendarYear,5,19),1),\"aaa\")","v":"الخميس"},{"$f":"TEXT(WEEKDAY(DATE(CalendarYear,5,20),1),\"aaa\")","v":"الجمعة"},{"$f":"TEXT(WEEKDAY(DATE(CalendarYear,5,21),1),\"aaa\")","v":"السبت"},{"$f":"TEXT(WEEKDAY(DATE(CalendarYear,5,22),1),\"aaa\")","v":"الأحد"},{"$f":"TEXT(WEEKDAY(DATE(CalendarYear,5,23),1),\"aaa\")","v":"الإثنين"},{"$f":"TEXT(WEEKDAY(DATE(CalendarYear,5,24),1),\"aaa\")","v":"الثلاثاء"},{"$f":"TEXT(WEEKDAY(DATE(CalendarYear,5,25),1),\"aaa\")","v":"الأربعاء"},{"$f":"TEXT(WEEKDAY(DATE(CalendarYear,5,26),1),\"aaa\")","v":"الخميس"},{"$f":"TEXT(WEEKDAY(DATE(CalendarYear,5,27),1),\"aaa\")","v":"الجمعة"},{"$f":"TEXT(WEEKDAY(DATE(CalendarYear,5,28),1),\"aaa\")","v":"السبت"},{"$f":"TEXT(WEEKDAY(DATE(CalendarYear,5,29),1),\"aaa\")","v":"الأحد"},{"$f":"TEXT(WEEKDAY(DATE(CalendarYear,5,30),1),\"aaa\")","v":"الإثنين"},{"$f":"TEXT(WEEKDAY(DATE(CalendarYear,5,31),1),\"aaa\")","v":"الثلاثاء"}]
[null,"اسم الموظف","1","2","3","4","5","6","7","8","9","10","11","12","13","14","15","16","17","18","19","20","21","22","23","24","25","26","27","28","29","30","31","إجمالي الأيام"]
[null,"الموظف 1",null,null,null,null,null,null,null,null,null,null,null,null,null,null,null,null,null,null,null,null,null,null,null,null,null,null,null,null,null,null,null,{"$f":"COUNTA(مايو[[#This Row],[1]:[31]])","v":0}]
[null,"الموظف 2",null,null,null,null,null,null,null,null,null,null,null,null,null,null,null,null,null,null,null,null,null,null,null,null,null,null,null,null,null,null,null,{"$f":"COUNTA(مايو[[#This Row],[1]:[31]])","v":0}]
[null,"الموظف 3",null,null,null,null,null,null,null,null,null,null,null,null,null,null,null,null,null,null,null,null,null,null,null,null,null,null,null,null,null,null,null,{"$f":"COUNTA(مايو[[#This Row],[1]:[31]])","v":0}]
[null,"الموظف 4",null,null,null,null,null,null,null,null,null,null,null,null,null,null,null,null,null,null,null,null,null,null,null,null,null,null,null,null,null,null,null,{"$f":"COUNTA(مايو[[#This Row],[1]:[31]])","v":0}]
[null,"الموظف 5",null,null,null,null,null,null,null,null,null,null,null,null,null,null,null,null,null,null,null,null,null,null,null,null,null,null,null,null,null,null,null,{"$f":"COUNTA(مايو[[#This Row],[1]:[31]])","v":0}]
[null,{"$f":"MonthName&\" الإجمالي\"","v":"مايو الإجمالي"},{"$f":"SUBTOTAL(103,[1])","v":0},{"$f":"SUBTOTAL(103,[2])","v":0},{"$f":"SUBTOTAL(103,[3])","v":0},{"$f":"SUBTOTAL(103,[4])","v":0},{"$f":"SUBTOTAL(103,[5])","v":0},{"$f":"SUBTOTAL(103,[6])","v":0},{"$f":"SUBTOTAL(103,[7])","v":0},{"$f":"SUBTOTAL(103,[8])","v":0},{"$f":"SUBTOTAL(103,[9])","v":0},{"$f":"SUBTOTAL(103,[10])","v":0},{"$f":"SUBTOTAL(103,[11])","v":0},{"$f":"SUBTOTAL(103,[12])","v":0},{"$f":"SUBTOTAL(103,[13])","v":0},{"$f":"SUBTOTAL(103,[14])","v":0},{"$f":"SUBTOTAL(103,[15])","v":0},{"$f":"SUBTOTAL(103,[16])","v":0},{"$f":"SUBTOTAL(103,[17])","v":0},{"$f":"SUBTOTAL(103,[18])","v":0},{"$f":"SUBTOTAL(103,[19])","v":0},{"$f":"SUBTOTAL(103,[20])","v":0},{"$f":"SUBTOTAL(103,[21])","v":0},{"$f":"SUBTOTAL(103,[22])","v":0},{"$f":"SUBTOTAL(103,[23])","v":0},{"$f":"SUBTOTAL(103,[24])","v":0},{"$f":"SUBTOTAL(103,[25])","v":0},{"$f":"SUBTOTAL(103,[26])","v":0},{"$f":"SUBTOTAL(103,[27])","v":0},{"$f":"SUBTOTAL(103,[28])","v":0},{"$f":"SUBTOTAL(103,[29])","v":0},{"$f":"SUBTOTAL(109,[30])","v":0},{"$f":"SUBTOTAL(109,[31])","v":0},{"$f":"SUBTOTAL(109,[إجمالي الأيام])","v":0}]

{"sheet":"يونيو","index":6,"n_rows":12,"n_cols":34,"rows_kept":12,"cut":false,"hidden":false,"merged":[[3,2,3,32],[1,3,1,4],[1,6,1,8],[1,10,1,11],[1,13,1,14],[1,16,1,17]]}
[null,{"$f":"Employee_Absence_Title","v":"جدول غياب الموظفين"}]
[null,"مفتاح نوع الغياب","ع","العطلة",null,"ش","أسباب شخصية",null,null,"م","مرضي",null,null,"مخصص 1",null,null,"مخصص 2"]
[]
[null,"يونيو","تواريخ الغياب",null,null,null,null,null,null,null,null,null,null,null,null,null,null,null,null,null,null,null,null,null,null,null,null,null,null,null,null,null,null,{"$f":"CalendarYear","v":2016}]
[null,null,{"$f":"TEXT(WEEKDAY(DATE(CalendarYear,6,1),1),\"aaa\")","v":"الأربعاء"},{"$f":"TEXT(WEEKDAY(DATE(CalendarYear,6,2),1),\"aaa\")","v":"الخميس"},{"$f":"TEXT(WEEKDAY(DATE(CalendarYear,6,3),1),\"aaa\")","v":"الجمعة"},{"$f":"TEXT(WEEKDAY(DATE(CalendarYear,6,4),1),\"aaa\")","v":"السبت"},{"$f":"TEXT(WEEKDAY(DATE(CalendarYear,6,5),1),\"aaa\")","v":"الأحد"},{"$f":"TEXT(WEEKDAY(DATE(CalendarYear,6,6),1),\"aaa\")","v":"الإثنين"},{"$f":"TEXT(WEEKDAY(DATE(CalendarYear,6,7),1),\"aaa\")","v":"الثلاثاء"},{"$f":"TEXT(WEEKDAY(DATE(CalendarYear,6,8),1),\"aaa\")","v":"الأربعاء"},{"$f":"TEXT(WEEKDAY(DATE(CalendarYear,6,9),1),\"aaa\")","v":"الخميس"},{"$f":"TEXT(WEEKDAY(DATE(CalendarYear,6,10),1),\"aaa\")","v":"الجمعة"},{"$f":"TEXT(WEEKDAY(DATE(CalendarYear,6,11),1),\"aaa\")","v":"السبت"},{"$f":"TEXT(WEEKDAY(DATE(CalendarYear,6,12),1),\"aaa\")","v":"الأحد"},{"$f":"TEXT(WEEKDAY(DATE(CalendarYear,6,13),1),\"aaa\")","v":"الإثنين"},{"$f":"TEXT(WEEKDAY(DATE(CalendarYear,6,14),1),\"aaa\")","v":"الثلاثاء"},{"$f":"TEXT(WEEKDAY(DATE(CalendarYear,6,15),1),\"aaa\")","v":"الأربعاء"},{"$f":"TEXT(WEEKDAY(DATE(CalendarYear,6,16),1),\"aaa\")","v":"الخميس"},{"$f":"TEXT(WEEKDAY(DATE(CalendarYear,6,17),1),\"aaa\")","v":"الجمعة"},{"$f":"TEXT(WEEKDAY(DATE(CalendarYear,6,18),1),\"aaa\")","v":"السبت"},{"$f":"TEXT(WEEKDAY(DATE(CalendarYear,6,19),1),\"aaa\")","v":"الأحد"},{"$f":"TEXT(WEEKDAY(DATE(CalendarYear,6,20),1),\"aaa\")","v":"الإثنين"},{"$f":"TEXT(WEEKDAY(DATE(CalendarYear,6,21),1),\"aaa\")","v":"الثلاثاء"},{"$f":"TEXT(WEEKDAY(DATE(CalendarYear,6,22),1),\"aaa\")","v":"الأربعاء"},{"$f":"TEXT(WEEKDAY(DATE(CalendarYear,6,23),1),\"aaa\")","v":"الخميس"},{"$f":"TEXT(WEEKDAY(DATE(CalendarYear,6,24),1),\"aaa\")","v":"الجمعة"},{"$f":"TEXT(WEEKDAY(DATE(CalendarYear,6,25),1),\"aaa\")","v":"السبت"},{"$f":"TEXT(WEEKDAY(DATE(CalendarYear,6,26),1),\"aaa\")","v":"الأحد"},{"$f":"TEXT(WEEKDAY(DATE(CalendarYear,6,27),1),\"aaa\")","v":"الإثنين"},{"$f":"TEXT(WEEKDAY(DATE(CalendarYear,6,28),1),\"aaa\")","v":"الثلاثاء"},{"$f":"TEXT(WEEKDAY(DATE(CalendarYear,6,29),1),\"aaa\")","v":"الأربعاء"},{"$f":"TEXT(WEEKDAY(DATE(CalendarYear,6,30),1),\"aaa\")","v":"الخميس"}]
[null,"اسم الموظف","1","2","3","4","5","6","7","8","9","10","11","12","13","14","15","16","17","18","19","20","21","22","23","24","25","26","27","28","29","30","31","إجمالي الأيام"]
[null,"الموظف 1",null,null,null,null,null,null,null,null,null,null,null,null,null,null,null,null,null,null,null,null,null,null,null,null,null,null,null,null,null,null,null,{"$f":"COUNTA(يونيو[[#This Row],[1]:[31]])","v":0}]
[null,"الموظف 2",null,null,null,null,null,null,null,null,null,null,null,null,null,null,null,null,null,null,null,null,null,null,null,null,null,null,null,null,null,null,null,{"$f":"COUNTA(يونيو[[#This Row],[1]:[31]])","v":0}]
[null,"الموظف 3",null,null,null,null,null,null,null,null,null,null,null,null,null,null,null,null,null,null,null,null,null,null,null,null,null,null,null,null,null,null,null,{"$f":"COUNTA(يونيو[[#This Row],[1]:[31]])","v":0}]
[null,"الموظف 4",null,null,null,null,null,null,null,null,null,null,null,null,null,null,null,null,null,null,null,null,null,null,null,null,null,null,null,null,null,null,null,{"$f":"COUNTA(يونيو[[#This Row],[1]:[31]])","v":0}]
[null,"الموظف 5",null,null,null,null,null,null,null,null,null,null,null,null,null,null,null,null,null,null,null,null,null,null,null,null,null,null,null,null,null,null,null,{"$f":"COUNTA(يونيو[[#This Row],[1]:[31]])","v":0}]
[null,{"$f":"MonthName&\" الإجمالي\"","v":"يونيو الإجمالي"},{"$f":"SUBTOTAL(103,[1])","v":0},{"$f":"SUBTOTAL(103,[2])","v":0},{"$f":"SUBTOTAL(103,[3])","v":0},{"$f":"SUBTOTAL(103,[4])","v":0},{"$f":"SUBTOTAL(103,[5])","v":0},{"$f":"SUBTOTAL(103,[6])","v":0},{"$f":"SUBTOTAL(103,[7])","v":0},{"$f":"SUBTOTAL(103,[8])","v":0},{"$f":"SUBTOTAL(103,[9])","v":0},{"$f":"SUBTOTAL(103,[10])","v":0},{"$f":"SUBTOTAL(103,[11])","v":0},{"$f":"SUBTOTAL(103,[12])","v":0},{"$f":"SUBTOTAL(103,[13])","v":0},{"$f":"SUBTOTAL(103,[14])","v":0},{"$f":"SUBTOTAL(103,[15])","v":0},{"$f":"SUBTOTAL(103,[16])","v":0},{"$f":"SUBTOTAL(103,[17])","v":0},{"$f":"SUBTOTAL(103,[18])","v":0},{"$f":"SUBTOTAL(103,[19])","v":0},{"$f":"SUBTOTAL(103,[20])","v":0},{"$f":"SUBTOTAL(103,[21])","v":0},{"$f":"SUBTOTAL(103,[22])","v":0},{"$f":"SUBTOTAL(103,[23])","v":0},{"$f":"SUBTOTAL(103,[24])","v":0},{"$f":"SUBTOTAL(103,[25])","v":0},{"$f":"SUBTOTAL(103,[26])","v":0},{"$f":"SUBTOTAL(103,[27])","v":0},{"$f":"SUBTOTAL(103,[28])","v":0},{"$f":"SUBTOTAL(103,[29])","v":0},{"$f":"SUBTOTAL(109,[30])","v":0},{"$f":"SUBTOTAL(109,[31])","v":0},{"$f":"SUBTOTAL(109,[إجمالي الأيام])","v":0}]

{"sheet":"يوليو","index":7,"n_rows":12,"n_cols":34,"rows_kept":12,"cut":false,"hidden":false,"merged":[[3,2,3,32],[1,3,1,4],[1,6,1,8],[1,10,1,11],[1,13,1,14],[1,16,1,17]]}
[null,{"$f":"Employee_Absence_Title","v":"جدول غياب الموظفين"}]
[null,"مفتاح نوع الغياب","ع","العطلة",null,"ش","أسباب شخصية",null,null,"م","مرضي",null,null,"مخصص 1",null,null,"مخصص 2"]
[]
[null,"يوليو","تواريخ الغياب",null,null,null,null,null,null,null,null,null,null,null,null,null,null,null,null,null,null,null,null,null,null,null,null,null,null,null,null,null,null,{"$f":"CalendarYear","v":2016}]
[null,null,{"$f":"TEXT(WEEKDAY(DATE(CalendarYear,7,1),1),\"aaa\")","v":"الجمعة"},{"$f":"TEXT(WEEKDAY(DATE(CalendarYear,7,2),1),\"aaa\")","v":"السبت"},{"$f":"TEXT(WEEKDAY(DATE(CalendarYear,7,3),1),\"aaa\")","v":"الأحد"},{"$f":"TEXT(WEEKDAY(DATE(CalendarYear,7,4),1),\"aaa\")","v":"الإثنين"},{"$f":"TEXT(WEEKDAY(DATE(CalendarYear,7,5),1),\"aaa\")","v":"الثلاثاء"},{"$f":"TEXT(WEEKDAY(DATE(CalendarYear,7,6),1),\"aaa\")","v":"الأربعاء"},{"$f":"TEXT(WEEKDAY(DATE(CalendarYear,7,7),1),\"aaa\")","v":"الخميس"},{"$f":"TEXT(WEEKDAY(DATE(CalendarYear,7,8),1),\"aaa\")","v":"الجمعة"},{"$f":"TEXT(WEEKDAY(DATE(CalendarYear,7,9),1),\"aaa\")","v":"السبت"},{"$f":"TEXT(WEEKDAY(DATE(CalendarYear,7,10),1),\"aaa\")","v":"الأحد"},{"$f":"TEXT(WEEKDAY(DATE(CalendarYear,7,11),1),\"aaa\")","v":"الإثنين"},{"$f":"TEXT(WEEKDAY(DATE(CalendarYear,7,12),1),\"aaa\")","v":"الثلاثاء"},{"$f":"TEXT(WEEKDAY(DATE(CalendarYear,7,13),1),\"aaa\")","v":"الأربعاء"},{"$f":"TEXT(WEEKDAY(DATE(CalendarYear,7,14),1),\"aaa\")","v":"الخميس"},{"$f":"TEXT(WEEKDAY(DATE(CalendarYear,7,15),1),\"aaa\")","v":"الجمعة"},{"$f":"TEXT(WEEKDAY(DATE(CalendarYear,7,16),1),\"aaa\")","v":"السبت"},{"$f":"TEXT(WEEKDAY(DATE(CalendarYear,7,17),1),\"aaa\")","v":"الأحد"},{"$f":"TEXT(WEEKDAY(DATE(CalendarYear,7,18),1),\"aaa\")","v":"الإثنين"},{"$f":"TEXT(WEEKDAY(DATE(CalendarYear,7,19),1),\"aaa\")","v":"الثلاثاء"},{"$f":"TEXT(WEEKDAY(DATE(CalendarYear,7,20),1),\"aaa\")","v":"الأربعاء"},{"$f":"TEXT(WEEKDAY(DATE(CalendarYear,7,21),1),\"aaa\")","v":"الخميس"},{"$f":"TEXT(WEEKDAY(DATE(CalendarYear,7,22),1),\"aaa\")","v":"الجمعة"},{"$f":"TEXT(WEEKDAY(DATE(CalendarYear,7,23),1),\"aaa\")","v":"السبت"},{"$f":"TEXT(WEEKDAY(DATE(CalendarYear,7,24),1),\"aaa\")","v":"الأحد"},{"$f":"TEXT(WEEKDAY(DATE(CalendarYear,7,25),1),\"aaa\")","v":"الإثنين"},{"$f":"TEXT(WEEKDAY(DATE(CalendarYear,7,26),1),\"aaa\")","v":"الثلاثاء"},{"$f":"TEXT(WEEKDAY(DATE(CalendarYear,7,27),1),\"aaa\")","v":"الأربعاء"},{"$f":"TEXT(WEEKDAY(DATE(CalendarYear,7,28),1),\"aaa\")","v":"الخميس"},{"$f":"TEXT(WEEKDAY(DATE(CalendarYear,7,29),1),\"aaa\")","v":"الجمعة"},{"$f":"TEXT(WEEKDAY(DATE(CalendarYear,7,30),1),\"aaa\")","v":"السبت"},{"$f":"TEXT(WEEKDAY(DATE(CalendarYear,7,31),1),\"aaa\")","v":"الأحد"}]
[null,"اسم الموظف","1","2","3","4","5","6","7","8","9","10","11","12","13","14","15","16","17","18","19","20","21","22","23","24","25","26","27","28","29","30","31","إجمالي الأيام"]
[null,"الموظف 1",null,null,null,null,null,null,null,null,null,null,null,null,null,null,null,null,null,null,null,null,null,null,null,null,null,null,null,null,null,null,null,{"$f":"COUNTA(يوليو[[#This Row],[1]:[31]])","v":0}]
[null,"الموظف 2",null,null,null,null,null,null,null,null,null,null,null,null,null,null,null,null,null,null,null,null,null,null,null,null,null,null,null,null,null,null,null,{"$f":"COUNTA(يوليو[[#This Row],[1]:[31]])","v":0}]
[null,"الموظف 3",null,null,null,null,null,null,null,null,null,null,null,null,null,null,null,null,null,null,null,null,null,null,null,null,null,null,null,null,null,null,null,{"$f":"COUNTA(يوليو[[#This Row],[1]:[31]])","v":0}]
[null,"الموظف 4",null,null,null,null,null,null,null,null,null,null,null,null,null,null,null,null,null,null,null,null,null,null,null,null,null,null,null,null,null,null,null,{"$f":"COUNTA(يوليو[[#This Row],[1]:[31]])","v":0}]
[null,"الموظف 5",null,null,null,null,null,null,null,null,null,null,null,null,null,null,null,null,null,null,null,null,null,null,null,null,null,null,null,null,null,null,null,{"$f":"COUNTA(يوليو[[#This Row],[1]:[31]])","v":0}]
[null,{"$f":"MonthName&\" الإجمالي\"","v":"يوليو الإجمالي"},{"$f":"SUBTOTAL(103,[1])","v":0},{"$f":"SUBTOTAL(103,[2])","v":0},{"$f":"SUBTOTAL(103,[3])","v":0},{"$f":"SUBTOTAL(103,[4])","v":0},{"$f":"SUBTOTAL(103,[5])","v":0},{"$f":"SUBTOTAL(103,[6])","v":0},{"$f":"SUBTOTAL(103,[7])","v":0},{"$f":"SUBTOTAL(103,[8])","v":0},{"$f":"SUBTOTAL(103,[9])","v":0},{"$f":"SUBTOTAL(103,[10])","v":0},{"$f":"SUBTOTAL(103,[11])","v":0},{"$f":"SUBTOTAL(103,[12])","v":0},{"$f":"SUBTOTAL(103,[13])","v":0},{"$f":"SUBTOTAL(103,[14])","v":0},{"$f":"SUBTOTAL(103,[15])","v":0},{"$f":"SUBTOTAL(103,[16])","v":0},{"$f":"SUBTOTAL(103,[17])","v":0},{"$f":"SUBTOTAL(103,[18])","v":0},{"$f":"SUBTOTAL(103,[19])","v":0},{"$f":"SUBTOTAL(103,[20])","v":0},{"$f":"SUBTOTAL(103,[21])","v":0},{"$f":"SUBTOTAL(103,[22])","v":0},{"$f":"SUBTOTAL(103,[23])","v":0},{"$f":"SUBTOTAL(103,[24])","v":0},{"$f":"SUBTOTAL(103,[25])","v":0},{"$f":"SUBTOTAL(103,[26])","v":0},{"$f":"SUBTOTAL(103,[27])","v":0},{"$f":"SUBTOTAL(103,[28])","v":0},{"$f":"SUBTOTAL(103,[29])","v":0},{"$f":"SUBTOTAL(109,[30])","v":0},{"$f":"SUBTOTAL(109,[31])","v":0},{"$f":"SUBTOTAL(109,[إجمالي الأيام])","v":0}]

{"sheet":"أغسطس","index":8,"n_rows":12,"n_cols":34,"rows_kept":12,"cut":false,"hidden":false,"merged":[[3,2,3,32],[1,3,1,4],[1,6,1,8],[1,10,1,11],[1,13,1,14],[1,16,1,17]]}
[null,{"$f":"Employee_Absence_Title","v":"جدول غياب الموظفين"}]
[null,"مفتاح نوع الغياب","ع","العطلة",null,"ش","أسباب شخصية",null,null,"م","مرضي",null,null,"مخصص 1",null,null,"مخصص 2"]
[]
[null,"أغسطس","تواريخ الغياب",null,null,null,null,null,null,null,null,null,null,null,null,null,null,null,null,null,null,null,null,null,null,null,null,null,null,null,null,null,null,{"$f":"CalendarYear","v":2016}]
[null,null,{"$f":"TEXT(WEEKDAY(DATE(CalendarYear,8,1),1),\"aaa\")","v":"الإثنين"},{"$f":"TEXT(WEEKDAY(DATE(CalendarYear,8,2),1),\"aaa\")","v":"الثلاثاء"},{"$f":"TEXT(WEEKDAY(DATE(CalendarYear,8,3),1),\"aaa\")","v":"الأربعاء"},{"$f":"TEXT(WEEKDAY(DATE(CalendarYear,8,4),1),\"aaa\")","v":"الخميس"},{"$f":"TEXT(WEEKDAY(DATE(CalendarYear,8,5),1),\"aaa\")","v":"الجمعة"},{"$f":"TEXT(WEEKDAY(DATE(CalendarYear,8,6),1),\"aaa\")","v":"السبت"},{"$f":"TEXT(WEEKDAY(DATE(CalendarYear,8,7),1),\"aaa\")","v":"الأحد"},{"$f":"TEXT(WEEKDAY(DATE(CalendarYear,8,8),1),\"aaa\")","v":"الإثنين"},{"$f":"TEXT(WEEKDAY(DATE(CalendarYear,8,9),1),\"aaa\")","v":"الثلاثاء"},{"$f":"TEXT(WEEKDAY(DATE(CalendarYear,8,10),1),\"aaa\")","v":"الأربعاء"},{"$f":"TEXT(WEEKDAY(DATE(CalendarYear,8,11),1),\"aaa\")","v":"الخميس"},{"$f":"TEXT(WEEKDAY(DATE(CalendarYear,8,12),1),\"aaa\")","v":"الجمعة"},{"$f":"TEXT(WEEKDAY(DATE(CalendarYear,8,13),1),\"aaa\")","v":"السبت"},{"$f":"TEXT(WEEKDAY(DATE(CalendarYear,8,14),1),\"aaa\")","v":"الأحد"},{"$f":"TEXT(WEEKDAY(DATE(CalendarYear,8,15),1),\"aaa\")","v":"الإثنين"},{"$f":"TEXT(WEEKDAY(DATE(CalendarYear,8,16),1),\"aaa\")","v":"الثلاثاء"},{"$f":"TEXT(WEEKDAY(DATE(CalendarYear,8,17),1),\"aaa\")","v":"الأربعاء"},{"$f":"TEXT(WEEKDAY(DATE(CalendarYear,8,18),1),\"aaa\")","v":"الخميس"},{"$f":"TEXT(WEEKDAY(DATE(CalendarYear,8,19),1),\"aaa\")","v":"الجمعة"},{"$f":"TEXT(WEEKDAY(DATE(CalendarYear,8,20),1),\"aaa\")","v":"السبت"},{"$f":"TEXT(WEEKDAY(DATE(CalendarYear,8,21),1),\"aaa\")","v":"الأحد"},{"$f":"TEXT(WEEKDAY(DATE(CalendarYear,8,22),1),\"aaa\")","v":"الإثنين"},{"$f":"TEXT(WEEKDAY(DATE(CalendarYear,8,23),1),\"aaa\")","v":"الثلاثاء"},{"$f":"TEXT(WEEKDAY(DATE(CalendarYear,8,24),1),\"aaa\")","v":"الأربعاء"},{"$f":"TEXT(WEEKDAY(DATE(CalendarYear,8,25),1),\"aaa\")","v":"الخميس"},{"$f":"TEXT(WEEKDAY(DATE(CalendarYear,8,26),1),\"aaa\")","v":"الجمعة"},{"$f":"TEXT(WEEKDAY(DATE(CalendarYear,8,27),1),\"aaa\")","v":"السبت"},{"$f":"TEXT(WEEKDAY(DATE(CalendarYear,8,28),1),\"aaa\")","v":"الأحد"},{"$f":"TEXT(WEEKDAY(DATE(CalendarYear,8,29),1),\"aaa\")","v":"الإثنين"},{"$f":"TEXT(WEEKDAY(DATE(CalendarYear,8,30),1),\"aaa\")","v":"الثلاثاء"},{"$f":"TEXT(WEEKDAY(DATE(CalendarYear,8,31),1),\"aaa\")","v":"الأربعاء"}]
[null,"اسم الموظف","1","2","3","4","5","6","7","8","9","10","11","12","13","14","15","16","17","18","19","20","21","22","23","24","25","26","27","28","29","30","31","إجمالي الأيام"]
[null,"الموظف 1",null,null,null,null,null,null,null,null,null,null,null,null,null,null,null,null,null,null,null,null,null,null,null,null,null,null,null,null,null,null,null,{"$f":"COUNTA(أغسطس[[#This Row],[1]:[31]])","v":0}]
[null,"الموظف 2",null,null,null,null,null,null,null,null,null,null,null,null,null,null,null,null,null,null,null,null,null,null,null,null,null,null,null,null,null,null,null,{"$f":"COUNTA(أغسطس[[#This Row],[1]:[31]])","v":0}]
[null,"الموظف 3",null,null,null,null,null,null,null,null,null,null,null,null,null,null,null,null,null,null,null,null,null,null,null,null,null,null,null,null,null,null,null,{"$f":"COUNTA(أغسطس[[#This Row],[1]:[31]])","v":0}]
[null,"الموظف 4",null,null,null,null,null,null,null,null,null,null,null,null,null,null,null,null,null,null,null,null,null,null,null,null,null,null,null,null,null,null,null,{"$f":"COUNTA(أغسطس[[#This Row],[1]:[31]])","v":0}]
[null,"الموظف 5",null,null,null,null,null,null,null,null,null,null,null,null,null,null,null,null,null,null,null,null,null,null,null,null,null,null,null,null,null,null,null,{"$f":"COUNTA(أغسطس[[#This Row],[1]:[31]])","v":0}]
[null,{"$f":"MonthName&\" الإجمالي\"","v":"أغسطس الإجمالي"},{"$f":"SUBTOTAL(103,[1])","v":0},{"$f":"SUBTOTAL(103,[2])","v":0},{"$f":"SUBTOTAL(103,[3])","v":0},{"$f":"SUBTOTAL(103,[4])","v":0},{"$f":"SUBTOTAL(103,[5])","v":0},{"$f":"SUBTOTAL(103,[6])","v":0},{"$f":"SUBTOTAL(103,[7])","v":0},{"$f":"SUBTOTAL(103,[8])","v":0},{"$f":"SUBTOTAL(103,[9])","v":0},{"$f":"SUBTOTAL(103,[10])","v":0},{"$f":"SUBTOTAL(103,[11])","v":0},{"$f":"SUBTOTAL(103,[12])","v":0},{"$f":"SUBTOTAL(103,[13])","v":0},{"$f":"SUBTOTAL(103,[14])","v":0},{"$f":"SUBTOTAL(103,[15])","v":0},{"$f":"SUBTOTAL(103,[16])","v":0},{"$f":"SUBTOTAL(103,[17])","v":0},{"$f":"SUBTOTAL(103,[18])","v":0},{"$f":"SUBTOTAL(103,[19])","v":0},{"$f":"SUBTOTAL(103,[20])","v":0},{"$f":"SUBTOTAL(103,[21])","v":0},{"$f":"SUBTOTAL(103,[22])","v":0},{"$f":"SUBTOTAL(103,[23])","v":0},{"$f":"SUBTOTAL(103,[24])","v":0},{"$f":"SUBTOTAL(103,[25])","v":0},{"$f":"SUBTOTAL(103,[26])","v":0},{"$f":"SUBTOTAL(103,[27])","v":0},{"$f":"SUBTOTAL(103,[28])","v":0},{"$f":"SUBTOTAL(103,[29])","v":0},{"$f":"SUBTOTAL(109,[30])","v":0},{"$f":"SUBTOTAL(109,[31])","v":0},{"$f":"SUBTOTAL(109,[إجمالي الأيام])","v":0}]

{"sheet":"سبتمبر","index":9,"n_rows":12,"n_cols":34,"rows_kept":12,"cut":false,"hidden":false,"merged":[[3,2,3,32],[1,3,1,4],[1,6,1,8],[1,10,1,11],[1,13,1,14],[1,16,1,17]]}
[null,{"$f":"Employee_Absence_Title","v":"جدول غياب الموظفين"}]
[null,"مفتاح نوع الغياب","ع","العطلة",null,"ش","أسباب شخصية",null,null,"م","مرضي",null,null,"مخصص 1",null,null,"مخصص 2"]
[]
[null,"سبتمبر","تواريخ الغياب",null,null,null,null,null,null,null,null,null,null,null,null,null,null,null,null,null,null,null,null,null,null,null,null,null,null,null,null,null,null,{"$f":"CalendarYear","v":2016}]
[null,null,{"$f":"TEXT(WEEKDAY(DATE(CalendarYear,9,1),1),\"aaa\")","v":"الخميس"},{"$f":"TEXT(WEEKDAY(DATE(CalendarYear,9,2),1),\"aaa\")","v":"الجمعة"},{"$f":"TEXT(WEEKDAY(DATE(CalendarYear,9,3),1),\"aaa\")","v":"السبت"},{"$f":"TEXT(WEEKDAY(DATE(CalendarYear,9,4),1),\"aaa\")","v":"الأحد"},{"$f":"TEXT(WEEKDAY(DATE(CalendarYear,9,5),1),\"aaa\")","v":"الإثنين"},{"$f":"TEXT(WEEKDAY(DATE(CalendarYear,9,6),1),\"aaa\")","v":"الثلاثاء"},{"$f":"TEXT(WEEKDAY(DATE(CalendarYear,9,7),1),\"aaa\")","v":"الأربعاء"},{"$f":"TEXT(WEEKDAY(DATE(CalendarYear,9,8),1),\"aaa\")","v":"الخميس"},{"$f":"TEXT(WEEKDAY(DATE(CalendarYear,9,9),1),\"aaa\")","v":"الجمعة"},{"$f":"TEXT(WEEKDAY(DATE(CalendarYear,9,10),1),\"aaa\")","v":"السبت"},{"$f":"TEXT(WEEKDAY(DATE(CalendarYear,9,11),1),\"aaa\")","v":"الأحد"},{"$f":"TEXT(WEEKDAY(DATE(CalendarYear,9,12),1),\"aaa\")","v":"الإثنين"},{"$f":"TEXT(WEEKDAY(DATE(CalendarYear,9,13),1),\"aaa\")","v":"الثلاثاء"},{"$f":"TEXT(WEEKDAY(DATE(CalendarYear,9,14),1),\"aaa\")","v":"الأربعاء"},{"$f":"TEXT(WEEKDAY(DATE(CalendarYear,9,15),1),\"aaa\")","v":"الخميس"},{"$f":"TEXT(WEEKDAY(DATE(CalendarYear,9,16),1),\"aaa\")","v":"الجمعة"},{"$f":"TEXT(WEEKDAY(DATE(CalendarYear,9,17),1),\"aaa\")","v":"السبت"},{"$f":"TEXT(WEEKDAY(DATE(CalendarYear,9,18),1),\"aaa\")","v":"الأحد"},{"$f":"TEXT(WEEKDAY(DATE(CalendarYear,9,19),1),\"aaa\")","v":"الإثنين"},{"$f":"TEXT(WEEKDAY(DATE(CalendarYear,9,20),1),\"aaa\")","v":"الثلاثاء"},{"$f":"TEXT(WEEKDAY(DATE(CalendarYear,9,21),1),\"aaa\")","v":"الأربعاء"},{"$f":"TEXT(WEEKDAY(DATE(CalendarYear,9,22),1),\"aaa\")","v":"الخميس"},{"$f":"TEXT(WEEKDAY(DATE(CalendarYear,9,23),1),\"aaa\")","v":"الجمعة"},{"$f":"TEXT(WEEKDAY(DATE(CalendarYear,9,24),1),\"aaa\")","v":"السبت"},{"$f":"TEXT(WEEKDAY(DATE(CalendarYear,9,25),1),\"aaa\")","v":"الأحد"},{"$f":"TEXT(WEEKDAY(DATE(CalendarYear,9,26),1),\"aaa\")","v":"الإثنين"},{"$f":"TEXT(WEEKDAY(DATE(CalendarYear,9,27),1),\"aaa\")","v":"الثلاثاء"},{"$f":"TEXT(WEEKDAY(DATE(CalendarYear,9,28),1),\"aaa\")","v":"الأربعاء"},{"$f":"TEXT(WEEKDAY(DATE(CalendarYear,9,29),1),\"aaa\")","v":"الخميس"},{"$f":"TEXT(WEEKDAY(DATE(CalendarYear,9,30),1),\"aaa\")","v":"الجمعة"}]
[null,"اسم الموظف","1","2","3","4","5","6","7","8","9","10","11","12","13","14","15","16","17","18","19","20","21","22","23","24","25","26","27","28","29","30","31","إجمالي الأيام"]
[null,"الموظف 1",null,null,null,null,null,null,null,null,null,null,null,null,null,null,null,null,null,null,null,null,null,null,null,null,null,null,null,null,null,null,null,{"$f":"COUNTA(سبتمبر[[#This Row],[1]:[31]])","v":0}]
[null,"الموظف 2",null,null,null,null,null,null,null,null,null,null,null,null,null,null,null,null,null,null,null,null,null,null,null,null,null,null,null,null,null,null,null,{"$f":"COUNTA(سبتمبر[[#This Row],[1]:[31]])","v":0}]
[null,"الموظف 3",null,null,null,null,null,null,null,null,null,null,null,null,null,null,null,null,null,null,null,null,null,null,null,null,null,null,null,null,null,null,null,{"$f":"COUNTA(سبتمبر[[#This Row],[1]:[31]])","v":0}]
[null,"الموظف 4",null,null,null,null,null,null,null,null,null,null,null,null,null,null,null,null,null,null,null,null,null,null,null,null,null,null,null,null,null,null,null,{"$f":"COUNTA(سبتمبر[[#This Row],[1]:[31]])","v":0}]
[null,"الموظف 5",null,null,null,null,null,null,null,null,null,null,null,null,null,null,null,null,null,null,null,null,null,null,null,null,null,null,null,null,null,null,null,{"$f":"COUNTA(سبتمبر[[#This Row],[1]:[31]])","v":0}]
[null,{"$f":"MonthName&\" الإجمالي\"","v":"سبتمبر الإجمالي"},{"$f":"SUBTOTAL(103,[1])","v":0},{"$f":"SUBTOTAL(103,[2])","v":0},{"$f":"SUBTOTAL(103,[3])","v":0},{"$f":"SUBTOTAL(103,[4])","v":0},{"$f":"SUBTOTAL(103,[5])","v":0},{"$f":"SUBTOTAL(103,[6])","v":0},{"$f":"SUBTOTAL(103,[7])","v":0},{"$f":"SUBTOTAL(103,[8])","v":0},{"$f":"SUBTOTAL(103,[9])","v":0},{"$f":"SUBTOTAL(103,[10])","v":0},{"$f":"SUBTOTAL(103,[11])","v":0},{"$f":"SUBTOTAL(103,[12])","v":0},{"$f":"SUBTOTAL(103,[13])","v":0},{"$f":"SUBTOTAL(103,[14])","v":0},{"$f":"SUBTOTAL(103,[15])","v":0},{"$f":"SUBTOTAL(103,[16])","v":0},{"$f":"SUBTOTAL(103,[17])","v":0},{"$f":"SUBTOTAL(103,[18])","v":0},{"$f":"SUBTOTAL(103,[19])","v":0},{"$f":"SUBTOTAL(103,[20])","v":0},{"$f":"SUBTOTAL(103,[21])","v":0},{"$f":"SUBTOTAL(103,[22])","v":0},{"$f":"SUBTOTAL(103,[23])","v":0},{"$f":"SUBTOTAL(103,[24])","v":0},{"$f":"SUBTOTAL(103,[25])","v":0},{"$f":"SUBTOTAL(103,[26])","v":0},{"$f":"SUBTOTAL(103,[27])","v":0},{"$f":"SUBTOTAL(103,[28])","v":0},{"$f":"SUBTOTAL(103,[29])","v":0},{"$f":"SUBTOTAL(109,[30])","v":0},{"$f":"SUBTOTAL(109,[31])","v":0},{"$f":"SUBTOTAL(109,[إجمالي الأيام])","v":0}]

{"sheet":"أكتوبر","index":10,"n_rows":12,"n_cols":34,"rows_kept":12,"cut":false,"hidden":false,"merged":[[3,2,3,32],[1,3,1,4],[1,6,1,8],[1,10,1,11],[1,13,1,14],[1,16,1,17]]}
[null,{"$f":"Employee_Absence_Title","v":"جدول غياب الموظفين"}]
[null,"مفتاح نوع الغياب","ع","العطلة",null,"ش","أسباب شخصية",null,null,"م","مرضي",null,null,"مخصص 1",null,null,"مخصص 2"]
[]
[null,"أكتوبر","تواريخ الغياب",null,null,null,null,null,null,null,null,null,null,null,null,null,null,null,null,null,null,null,null,null,null,null,null,null,null,null,null,null,null,{"$f":"CalendarYear","v":2016}]
[null,null,{"$f":"TEXT(WEEKDAY(DATE(CalendarYear,10,1),1),\"aaa\")","v":"السبت"},{"$f":"TEXT(WEEKDAY(DATE(CalendarYear,10,2),1),\"aaa\")","v":"الأحد"},{"$f":"TEXT(WEEKDAY(DATE(CalendarYear,10,3),1),\"aaa\")","v":"الإثنين"},{"$f":"TEXT(WEEKDAY(DATE(CalendarYear,10,4),1),\"aaa\")","v":"الثلاثاء"},{"$f":"TEXT(WEEKDAY(DATE(CalendarYear,10,5),1),\"aaa\")","v":"الأربعاء"},{"$f":"TEXT(WEEKDAY(DATE(CalendarYear,10,6),1),\"aaa\")","v":"الخميس"},{"$f":"TEXT(WEEKDAY(DATE(CalendarYear,10,7),1),\"aaa\")","v":"الجمعة"},{"$f":"TEXT(WEEKDAY(DATE(CalendarYear,10,8),1),\"aaa\")","v":"السبت"},{"$f":"TEXT(WEEKDAY(DATE(CalendarYear,10,9),1),\"aaa\")","v":"الأحد"},{"$f":"TEXT(WEEKDAY(DATE(CalendarYear,10,10),1),\"aaa\")","v":"الإثنين"},{"$f":"TEXT(WEEKDAY(DATE(CalendarYear,10,11),1),\"aaa\")","v":"الثلاثاء"},{"$f":"TEXT(WEEKDAY(DATE(CalendarYear,10,12),1),\"aaa\")","v":"الأربعاء"},{"$f":"TEXT(WEEKDAY(DATE(CalendarYear,10,13),1),\"aaa\")","v":"الخميس"},{"$f":"TEXT(WEEKDAY(DATE(CalendarYear,10,14),1),\"aaa\")","v":"الجمعة"},{"$f":"TEXT(WEEKDAY(DATE(CalendarYear,10,15),1),\"aaa\")","v":"السبت"},{"$f":"TEXT(WEEKDAY(DATE(CalendarYear,10,16),1),\"aaa\")","v":"الأحد"},{"$f":"TEXT(WEEKDAY(DATE(CalendarYear,10,17),1),\"aaa\")","v":"الإثنين"},{"$f":"TEXT(WEEKDAY(DATE(CalendarYear,10,18),1),\"aaa\")","v":"الثلاثاء"},{"$f":"TEXT(WEEKDAY(DATE(CalendarYear,10,19),1),\"aaa\")","v":"الأربعاء"},{"$f":"TEXT(WEEKDAY(DATE(CalendarYear,10,20),1),\"aaa\")","v":"الخميس"},{"$f":"TEXT(WEEKDAY(DATE(CalendarYear,10,21),1),\"aaa\")","v":"الجمعة"},{"$f":"TEXT(WEEKDAY(DATE(CalendarYear,10,22),1),\"aaa\")","v":"السبت"},{"$f":"TEXT(WEEKDAY(DATE(CalendarYear,10,23),1),\"aaa\")","v":"الأحد"},{"$f":"TEXT(WEEKDAY(DATE(CalendarYear,10,24),1),\"aaa\")","v":"الإثنين"},{"$f":"TEXT(WEEKDAY(DATE(CalendarYear,10,25),1),\"aaa\")","v":"الثلاثاء"},{"$f":"TEXT(WEEKDAY(DATE(CalendarYear,10,26),1),\"aaa\")","v":"الأربعاء"},{"$f":"TEXT(WEEKDAY(DATE(CalendarYear,10,27),1),\"aaa\")","v":"الخميس"},{"$f":"TEXT(WEEKDAY(DATE(CalendarYear,10,28),1),\"aaa\")","v":"الجمعة"},{"$f":"TEXT(WEEKDAY(DATE(CalendarYear,10,29),1),\"aaa\")","v":"السبت"},{"$f":"TEXT(WEEKDAY(DATE(CalendarYear,10,30),1),\"aaa\")","v":"الأحد"},{"$f":"TEXT(WEEKDAY(DATE(CalendarYear,10,31),1),\"aaa\")","v":"الإثنين"}]
[null,"اسم الموظف","1","2","3","4","5","6","7","8","9","10","11","12","13","14","15","16","17","18","19","20","21","22","23","24","25","26","27","28","29","30","31","إجمالي الأيام"]
[null,"الموظف 1",null,null,null,null,null,null,null,null,null,null,null,null,null,null,null,null,null,null,null,null,null,null,null,null,null,null,null,null,null,null,null,{"$f":"COUNTA(أكتوبر[[#This Row],[1]:[31]])","v":0}]
[null,"الموظف 2",null,null,null,null,null,null,null,null,null,null,null,null,null,null,null,null,null,null,null,null,null,null,null,null,null,null,null,null,null,null,null,{"$f":"COUNTA(أكتوبر[[#This Row],[1]:[31]])","v":0}]
[null,"الموظف 3",null,null,null,null,null,null,null,null,null,null,null,null,null,null,null,null,null,null,null,null,null,null,null,null,null,null,null,null,null,null,null,{"$f":"COUNTA(أكتوبر[[#This Row],[1]:[31]])","v":0}]
[null,"الموظف 4",null,null,null,null,null,null,null,null,null,null,null,null,null,null,null,null,null,null,null,null,null,null,null,null,null,null,null,null,null,null,null,{"$f":"COUNTA(أكتوبر[[#This Row],[1]:[31]])","v":0}]
[null,"الموظف 5",null,null,null,null,null,null,null,null,null,null,null,null,null,null,null,null,null,null,null,null,null,null,null,null,null,null,null,null,null,null,null,{"$f":"COUNTA(أكتوبر[[#This Row],[1]:[31]])","v":0}]
[null,{"$f":"MonthName&\" الإجمالي\"","v":"أكتوبر الإجمالي"},{"$f":"SUBTOTAL(103,[1])","v":0},{"$f":"SUBTOTAL(103,[2])","v":0},{"$f":"SUBTOTAL(103,[3])","v":0},{"$f":"SUBTOTAL(103,[4])","v":0},{"$f":"SUBTOTAL(103,[5])","v":0},{"$f":"SUBTOTAL(103,[6])","v":0},{"$f":"SUBTOTAL(103,[7])","v":0},{"$f":"SUBTOTAL(103,[8])","v":0},{"$f":"SUBTOTAL(103,[9])","v":0},{"$f":"SUBTOTAL(103,[10])","v":0},{"$f":"SUBTOTAL(103,[11])","v":0},{"$f":"SUBTOTAL(103,[12])","v":0},{"$f":"SUBTOTAL(103,[13])","v":0},{"$f":"SUBTOTAL(103,[14])","v":0},{"$f":"SUBTOTAL(103,[15])","v":0},{"$f":"SUBTOTAL(103,[16])","v":0},{"$f":"SUBTOTAL(103,[17])","v":0},{"$f":"SUBTOTAL(103,[18])","v":0},{"$f":"SUBTOTAL(103,[19])","v":0},{"$f":"SUBTOTAL(103,[20])","v":0},{"$f":"SUBTOTAL(103,[21])","v":0},{"$f":"SUBTOTAL(103,[22])","v":0},{"$f":"SUBTOTAL(103,[23])","v":0},{"$f":"SUBTOTAL(103,[24])","v":0},{"$f":"SUBTOTAL(103,[25])","v":0},{"$f":"SUBTOTAL(103,[26])","v":0},{"$f":"SUBTOTAL(103,[27])","v":0},{"$f":"SUBTOTAL(103,[28])","v":0},{"$f":"SUBTOTAL(103,[29])","v":0},{"$f":"SUBTOTAL(109,[30])","v":0},{"$f":"SUBTOTAL(109,[31])","v":0},{"$f":"SUBTOTAL(109,[إجمالي الأيام])","v":0}]

{"sheet":"نوفمبر","index":11,"n_rows":12,"n_cols":34,"rows_kept":12,"cut":false,"hidden":false,"merged":[[3,2,3,32],[1,3,1,4],[1,6,1,8],[1,10,1,11],[1,13,1,14],[1,16,1,17]]}
[null,{"$f":"Employee_Absence_Title","v":"جدول غياب الموظفين"}]
[null,"مفتاح نوع الغياب","ع","العطلة",null,"ش","أسباب شخصية",null,null,"م","مرضي",null,null,"مخصص 1",null,null,"مخصص 2"]
[]
[null,"نوفمبر","تواريخ الغياب",null,null,null,null,null,null,null,null,null,null,null,null,null,null,null,null,null,null,null,null,null,null,null,null,null,null,null,null,null,null,{"$f":"CalendarYear","v":2016}]
[null,null,{"$f":"TEXT(WEEKDAY(DATE(CalendarYear,11,1),1),\"aaa\")","v":"الثلاثاء"},{"$f":"TEXT(WEEKDAY(DATE(CalendarYear,11,2),1),\"aaa\")","v":"الأربعاء"},{"$f":"TEXT(WEEKDAY(DATE(CalendarYear,11,3),1),\"aaa\")","v":"الخميس"},{"$f":"TEXT(WEEKDAY(DATE(CalendarYear,11,4),1),\"aaa\")","v":"الجمعة"},{"$f":"TEXT(WEEKDAY(DATE(CalendarYear,11,5),1),\"aaa\")","v":"السبت"},{"$f":"TEXT(WEEKDAY(DATE(CalendarYear,11,6),1),\"aaa\")","v":"الأحد"},{"$f":"TEXT(WEEKDAY(DATE(CalendarYear,11,7),1),\"aaa\")","v":"الإثنين"},{"$f":"TEXT(WEEKDAY(DATE(CalendarYear,11,8),1),\"aaa\")","v":"الثلاثاء"},{"$f":"TEXT(WEEKDAY(DATE(CalendarYear,11,9),1),\"aaa\")","v":"الأربعاء"},{"$f":"TEXT(WEEKDAY(DATE(CalendarYear,11,10),1),\"aaa\")","v":"الخميس"},{"$f":"TEXT(WEEKDAY(DATE(CalendarYear,11,11),1),\"aaa\")","v":"الجمعة"},{"$f":"TEXT(WEEKDAY(DATE(CalendarYear,11,12),1),\"aaa\")","v":"السبت"},{"$f":"TEXT(WEEKDAY(DATE(CalendarYear,11,13),1),\"aaa\")","v":"الأحد"},{"$f":"TEXT(WEEKDAY(DATE(CalendarYear,11,14),1),\"aaa\")","v":"الإثنين"},{"$f":"TEXT(WEEKDAY(DATE(CalendarYear,11,15),1),\"aaa\")","v":"الثلاثاء"},{"$f":"TEXT(WEEKDAY(DATE(CalendarYear,11,16),1),\"aaa\")","v":"الأربعاء"},{"$f":"TEXT(WEEKDAY(DATE(CalendarYear,11,17),1),\"aaa\")","v":"الخميس"},{"$f":"TEXT(WEEKDAY(DATE(CalendarYear,11,18),1),\"aaa\")","v":"الجمعة"},{"$f":"TEXT(WEEKDAY(DATE(CalendarYear,11,19),1),\"aaa\")","v":"السبت"},{"$f":"TEXT(WEEKDAY(DATE(CalendarYear,11,20),1),\"aaa\")","v":"الأحد"},{"$f":"TEXT(WEEKDAY(DATE(CalendarYear,11,21),1),\"aaa\")","v":"الإثنين"},{"$f":"TEXT(WEEKDAY(DATE(CalendarYear,11,22),1),\"aaa\")","v":"الثلاثاء"},{"$f":"TEXT(WEEKDAY(DATE(CalendarYear,11,23),1),\"aaa\")","v":"الأربعاء"},{"$f":"TEXT(WEEKDAY(DATE(CalendarYear,11,24),1),\"aaa\")","v":"الخميس"},{"$f":"TEXT(WEEKDAY(DATE(CalendarYear,11,25),1),\"aaa\")","v":"الجمعة"},{"$f":"TEXT(WEEKDAY(DATE(CalendarYear,11,26),1),\"aaa\")","v":"السبت"},{"$f":"TEXT(WEEKDAY(DATE(CalendarYear,11,27),1),\"aaa\")","v":"الأحد"},{"$f":"TEXT(WEEKDAY(DATE(CalendarYear,11,28),1),\"aaa\")","v":"الإثنين"},{"$f":"TEXT(WEEKDAY(DATE(CalendarYear,11,29),1),\"aaa\")","v":"الثلاثاء"},{"$f":"TEXT(WEEKDAY(DATE(CalendarYear,11,30),1),\"aaa\")","v":"الأربعاء"}]
[null,"اسم الموظف","1","2","3","4","5","6","7","8","9","10","11","12","13","14","15","16","17","18","19","20","21","22","23","24","25","26","27","28","29","30","31","إجمالي الأيام"]
[null,"الموظف 1",null,null,null,null,null,null,null,null,null,null,null,null,null,null,null,null,null,null,null,null,null,null,null,null,null,null,null,null,null,null,null,{"$f":"COUNTA(نوفمبر[[#This Row],[1]:[31]])","v":0}]
[null,"الموظف 2",null,null,null,null,null,null,null,null,null,null,null,null,null,null,null,null,null,null,null,null,null,null,null,null,null,null,null,null,null,null,null,{"$f":"COUNTA(نوفمبر[[#This Row],[1]:[31]])","v":0}]
[null,"الموظف 3",null,null,null,null,null,null,null,null,null,null,null,null,null,null,null,null,null,null,null,null,null,null,null,null,null,null,null,null,null,null,null,{"$f":"COUNTA(نوفمبر[[#This Row],[1]:[31]])","v":0}]
[null,"الموظف 4",null,null,null,null,null,null,null,null,null,null,null,null,null,null,null,null,null,null,null,null,null,null,null,null,null,null,null,null,null,null,null,{"$f":"COUNTA(نوفمبر[[#This Row],[1]:[31]])","v":0}]
[null,"الموظف 5",null,null,null,null,null,null,null,null,null,null,null,null,null,null,null,null,null,null,null,null,null,null,null,null,null,null,null,null,null,null,null,{"$f":"COUNTA(نوفمبر[[#This Row],[1]:[31]])","v":0}]
[null,{"$f":"MonthName&\" الإجمالي\"","v":"نوفمبر الإجمالي"},{"$f":"SUBTOTAL(103,[1])","v":0},{"$f":"SUBTOTAL(103,[2])","v":0},{"$f":"SUBTOTAL(103,[3])","v":0},{"$f":"SUBTOTAL(103,[4])","v":0},{"$f":"SUBTOTAL(103,[5])","v":0},{"$f":"SUBTOTAL(103,[6])","v":0},{"$f":"SUBTOTAL(103,[7])","v":0},{"$f":"SUBTOTAL(103,[8])","v":0},{"$f":"SUBTOTAL(103,[9])","v":0},{"$f":"SUBTOTAL(103,[10])","v":0},{"$f":"SUBTOTAL(103,[11])","v":0},{"$f":"SUBTOTAL(103,[12])","v":0},{"$f":"SUBTOTAL(103,[13])","v":0},{"$f":"SUBTOTAL(103,[14])","v":0},{"$f":"SUBTOTAL(103,[15])","v":0},{"$f":"SUBTOTAL(103,[16])","v":0},{"$f":"SUBTOTAL(103,[17])","v":0},{"$f":"SUBTOTAL(103,[18])","v":0},{"$f":"SUBTOTAL(103,[19])","v":0},{"$f":"SUBTOTAL(103,[20])","v":0},{"$f":"SUBTOTAL(103,[21])","v":0},{"$f":"SUBTOTAL(103,[22])","v":0},{"$f":"SUBTOTAL(103,[23])","v":0},{"$f":"SUBTOTAL(103,[24])","v":0},{"$f":"SUBTOTAL(103,[25])","v":0},{"$f":"SUBTOTAL(103,[26])","v":0},{"$f":"SUBTOTAL(103,[27])","v":0},{"$f":"SUBTOTAL(103,[28])","v":0},{"$f":"SUBTOTAL(103,[29])","v":0},{"$f":"SUBTOTAL(109,[30])","v":0},{"$f":"SUBTOTAL(109,[31])","v":0},{"$f":"SUBTOTAL(109,[إجمالي الأيام])","v":0}]

{"sheet":"ديسمبر","index":12,"n_rows":12,"n_cols":34,"rows_kept":12,"cut":false,"hidden":false,"merged":[[3,2,3,32],[1,3,1,4],[1,6,1,8],[1,10,1,11],[1,13,1,14],[1,16,1,17]]}
[null,{"$f":"Employee_Absence_Title","v":"جدول غياب الموظفين"}]
[null,"مفتاح نوع الغياب","ع","العطلة",null,"ش","أسباب شخصية",null,null,"م","مرضي",null,null,"مخصص 1",null,null,"مخصص 2"]
[]
[null,"ديسمبر","تواريخ الغياب",null,null,null,null,null,null,null,null,null,null,null,null,null,null,null,null,null,null,null,null,null,null,null,null,null,null,null,null,null,null,{"$f":"CalendarYear","v":2016}]
[null,null,{"$f":"TEXT(WEEKDAY(DATE(CalendarYear,12,1),1),\"aaa\")","v":"الخميس"},{"$f":"TEXT(WEEKDAY(DATE(CalendarYear,12,2),1),\"aaa\")","v":"الجمعة"},{"$f":"TEXT(WEEKDAY(DATE(CalendarYear,12,3),1),\"aaa\")","v":"السبت"},{"$f":"TEXT(WEEKDAY(DATE(CalendarYear,12,4),1),\"aaa\")","v":"الأحد"},{"$f":"TEXT(WEEKDAY(DATE(CalendarYear,12,5),1),\"aaa\")","v":"الإثنين"},{"$f":"TEXT(WEEKDAY(DATE(CalendarYear,12,6),1),\"aaa\")","v":"الثلاثاء"},{"$f":"TEXT(WEEKDAY(DATE(CalendarYear,12,7),1),\"aaa\")","v":"الأربعاء"},{"$f":"TEXT(WEEKDAY(DATE(CalendarYear,12,8),1),\"aaa\")","v":"الخميس"},{"$f":"TEXT(WEEKDAY(DATE(CalendarYear,12,9),1),\"aaa\")","v":"الجمعة"},{"$f":"TEXT(WEEKDAY(DATE(CalendarYear,12,10),1),\"aaa\")","v":"السبت"},{"$f":"TEXT(WEEKDAY(DATE(CalendarYear,12,11),1),\"aaa\")","v":"الأحد"},{"$f":"TEXT(WEEKDAY(DATE(CalendarYear,12,12),1),\"aaa\")","v":"الإثنين"},{"$f":"TEXT(WEEKDAY(DATE(CalendarYear,12,13),1),\"aaa\")","v":"الثلاثاء"},{"$f":"TEXT(WEEKDAY(DATE(CalendarYear,12,14),1),\"aaa\")","v":"الأربعاء"},{"$f":"TEXT(WEEKDAY(DATE(CalendarYear,12,15),1),\"aaa\")","v":"الخميس"},{"$f":"TEXT(WEEKDAY(DATE(CalendarYear,12,16),1),\"aaa\")","v":"الجمعة"},{"$f":"TEXT(WEEKDAY(DATE(CalendarYear,12,17),1),\"aaa\")","v":"السبت"},{"$f":"TEXT(WEEKDAY(DATE(CalendarYear,12,18),1),\"aaa\")","v":"الأحد"},{"$f":"TEXT(WEEKDAY(DATE(CalendarYear,12,19),1),\"aaa\")","v":"الإثنين"},{"$f":"TEXT(WEEKDAY(DATE(CalendarYear,12,20),1),\"aaa\")","v":"الثلاثاء"},{"$f":"TEXT(WEEKDAY(DATE(CalendarYear,12,21),1),\"aaa\")","v":"الأربعاء"},{"$f":"TEXT(WEEKDAY(DATE(CalendarYear,12,22),1),\"aaa\")","v":"الخميس"},{"$f":"TEXT(WEEKDAY(DATE(CalendarYear,12,23),1),\"aaa\")","v":"الجمعة"},{"$f":"TEXT(WEEKDAY(DATE(CalendarYear,12,24),1),\"aaa\")","v":"السبت"},{"$f":"TEXT(WEEKDAY(DATE(CalendarYear,12,25),1),\"aaa\")","v":"الأحد"},{"$f":"TEXT(WEEKDAY(DATE(CalendarYear,12,26),1),\"aaa\")","v":"الإثنين"},{"$f":"TEXT(WEEKDAY(DATE(CalendarYear,12,27),1),\"aaa\")","v":"الثلاثاء"},{"$f":"TEXT(WEEKDAY(DATE(CalendarYear,12,28),1),\"aaa\")","v":"الأربعاء"},{"$f":"TEXT(WEEKDAY(DATE(CalendarYear,12,29),1),\"aaa\")","v":"الخميس"},{"$f":"TEXT(WEEKDAY(DATE(CalendarYear,12,30),1),\"aaa\")","v":"الجمعة"},{"$f":"TEXT(WEEKDAY(DATE(CalendarYear,12,31),1),\"aaa\")","v":"السبت"}]
[null,"اسم الموظف","1","2","3","4","5","6","7","8","9","10","11","12","13","14","15","16","17","18","19","20","21","22","23","24","25","26","27","28","29","30","31","إجمالي الأيام"]
[null,"الموظف 1",null,null,null,null,null,null,null,null,null,null,null,null,null,null,null,null,null,null,null,null,null,null,null,null,null,null,null,null,null,null,null,{"$f":"COUNTA(ديسمبر[[#This Row],[1]:[31]])","v":0}]
[null,"الموظف 2",null,null,null,null,null,null,null,null,null,null,null,null,null,null,null,null,null,null,null,null,null,null,null,null,null,null,null,null,null,null,null,{"$f":"COUNTA(ديسمبر[[#This Row],[1]:[31]])","v":0}]
[null,"الموظف 3",null,null,null,null,null,null,null,null,null,null,null,null,null,null,null,null,null,null,null,null,null,null,null,null,null,null,null,null,null,null,null,{"$f":"COUNTA(ديسمبر[[#This Row],[1]:[31]])","v":0}]
[null,"الموظف 4",null,null,null,null,null,null,null,null,null,null,null,null,null,null,null,null,null,null,null,null,null,null,null,null,null,null,null,null,null,null,null,{"$f":"COUNTA(ديسمبر[[#This Row],[1]:[31]])","v":0}]
[null,"الموظف 5",null,null,null,null,null,null,null,null,null,null,null,null,null,null,null,null,null,null,null,null,null,null,null,null,null,null,null,null,null,null,null,{"$f":"COUNTA(ديسمبر[[#This Row],[1]:[31]])","v":0}]
[null,{"$f":"MonthName&\" الإجمالي\"","v":"ديسمبر الإجمالي"},{"$f":"SUBTOTAL(103,[1])","v":0},{"$f":"SUBTOTAL(103,[2])","v":0},{"$f":"SUBTOTAL(103,[3])","v":0},{"$f":"SUBTOTAL(103,[4])","v":0},{"$f":"SUBTOTAL(103,[5])","v":0},{"$f":"SUBTOTAL(103,[6])","v":0},{"$f":"SUBTOTAL(103,[7])","v":0},{"$f":"SUBTOTAL(103,[8])","v":0},{"$f":"SUBTOTAL(103,[9])","v":0},{"$f":"SUBTOTAL(103,[10])","v":0},{"$f":"SUBTOTAL(103,[11])","v":0},{"$f":"SUBTOTAL(103,[12])","v":0},{"$f":"SUBTOTAL(103,[13])","v":0},{"$f":"SUBTOTAL(103,[14])","v":0},{"$f":"SUBTOTAL(103,[15])","v":0},{"$f":"SUBTOTAL(103,[16])","v":0},{"$f":"SUBTOTAL(103,[17])","v":0},{"$f":"SUBTOTAL(103,[18])","v":0},{"$f":"SUBTOTAL(103,[19])","v":0},{"$f":"SUBTOTAL(103,[20])","v":0},{"$f":"SUBTOTAL(103,[21])","v":0},{"$f":"SUBTOTAL(103,[22])","v":0},{"$f":"SUBTOTAL(103,[23])","v":0},{"$f":"SUBTOTAL(103,[24])","v":0},{"$f":"SUBTOTAL(103,[25])","v":0},{"$f":"SUBTOTAL(103,[26])","v":0},{"$f":"SUBTOTAL(103,[27])","v":0},{"$f":"SUBTOTAL(103,[28])","v":0},{"$f":"SUBTOTAL(103,[29])","v":0},{"$f":"SUBTOTAL(109,[30])","v":0},{"$f":"SUBTOTAL(109,[31])","v":0},{"$f":"SUBTOTAL(109,[إجمالي الأيام])","v":0}]